Workbook

Sheet 解説
A1: 使い方
A2: 1 | B2: 準備
C3: エクセルのマクロの機能をはたらかせる
C4: 方法 | D4: ： | E4: 「!セキュリティの警告 マクロが無効にされました。」の表示が出たら「コンテンツの有効化」をクリック
A6: 2 | B6: シートの選択
C7: 「Average」のシートを選択して表示させる。
A9: 3 | B9: 設定値の選択
C10: B列1行目の数字1～3を選択して入れる。
C11: 設定値1 | D11: ： | E11: 拡散した物質の位置座標（C列目）を選択
C12: 設定値2 | D12: ： | E12: 拡散した物質の移動速度（D列目）を選択
C13: 設定値3 | D13: ： | E13: 拡散した物質の移動距離2（E列目）を選択
A15: 4 | B15: 平均回数の設定
C16: I列1行目に平均計算の回数を入れる。
A18: 5 | B18: 平均値計算プログラムをはたらかせる
C19: 「表示」⇒「マクロ」⇒「Average」⇒「実行」とクリックする。
C20: 乱数を発生させながら計算を繰り返し、選んだ設定値の「平均値と時間」、「標準偏差と時間」との関係をグラフで表示する。

Sheet Average
A1: 設定値 | B1: 3 | C1: 1 | D1: 2 | E1: 3 | G1: N= | H1: 20 | I1: 20 | K1: 3 | L1: 3 | M1: 3 | N1: 3 | O1: 3 | P1: 3 | Q1: 3 | R1: 3 | S1: 3 | T1: 3 | U1: 3 | V1: 3 | W1: 3 | X1: 3 | Y1: 3 | Z1: 3 | AA1: 3 | AB1: 3 | AC1: 3 | AD1: 3
A2: 乱数 | B2: 時間 | C2: 位置 | D2: 速度 | E2: 移動距離2 | G2: 右の平均値 | H2: 右の標準偏差 | K2: 移動距離2 | L2: 移動距離2 | M2: 移動距離2 | N2: 移動距離2 | O2: 移動距離2 | P2: 移動距離2 | Q2: 移動距離2 | R2: 移動距離2 | S2: 移動距離2 | T2: 移動距離2 | U2: 移動距離2 | V2: 移動距離2 | W2: 移動距離2 | X2: 移動距離2 | Y2: 移動距離2 | Z2: 移動距離2 | AA2: 移動距離2 | AB2: 移動距離2 | AC2: 移動距離2 | AD2: 移動距離2
A3: =RAND() -> 0.3636360902 | B3: 0 | C3: 0 | E3: =C3^2 -> 0 | G3: =AVERAGE(K3:BB3) -> 0 | H3: =STDEV(K3:BB3) -> 0 | K3: 0 | L3: 0 | M3: 0 | N3: 0 | O3: 0 | P3: 0 | Q3: 0 | R3: 0 | S3: 0 | T3: 0 | U3: 0 | V3: 0 | W3: 0 | X3: 0 | Y3: 0 | Z3: 0 | AA3: 0 | AB3: 0 | AC3: 0 | AD3: 0
A4: =RAND() -> 0.4346518178 | B4: =B3+1 -> 1 | C4: =IF(A4<=0.333,C3+1,IF(A4>=0.666666,C3-1,C3)) -> 0 | D4: =(C4-$C$3)/B4 -> 0 | E4: =C4^2 -> 0 | G4: =AVERAGE(K4:BB4) -> 0.7 | H4: =STDEV(K4:BB4) -> 0.470162346 | K4: 1 | L4: 1 | M4: 0 | N4: 1 | O4: 1 | P4: 1 | Q4: 0 | R4: 1 | S4: 1 | T4: 0 | U4: 1 | V4: 0 | W4: 1 | X4: 1 | Y4: 0 | Z4: 0 | AA4: 1 | AB4: 1 | AC4: 1 | AD4: 1
A5: 0.0370644655 | B5: =B4+1 -> 2 | C5: =IF(A5<=0.333,C4+1,IF(A5>=0.666666,C4-1,C4)) -> 1 | D5: =(C5-$C$3)/B5 -> 0.5 | E5: 1 | G5: 1.25 | H5: 1.251315098 | K5: 4 | L5: 1 | M5: 1 | N5: 4 | O5: 0 | P5: 1 | Q5: 0 | R5: 1 | S5: 1 | T5: 1 | U5: 1 | V5: 0 | W5: 1 | X5: 1 | Y5: 1 | Z5: 1 | AA5: 1 | AB5: 1 | AC5: 0 | AD5: 4
A6: 0.313083706 | B6: 3 | C6: 2 | D6: 0.6666666667 | E6: 4 | G6: 2.15 | H6: 1.755442664 | K6: 1 | L6: 4 | M6: 4 | N6: 4 | O6: 1 | P6: 1 | Q6: 1 | R6: 0 | S6: 4 | T6: 1 | U6: 4 | V6: 0 | W6: 0 | X6: 4 | Y6: 4 | Z6: 4 | AA6: 4 | AB6: 0 | AC6: 1 | AD6: 1
A7: 0.06921393273 | B7: =B6+1 -> 4 | C7: 3 | D7: =(C7-$C$3)/B7 -> 0.75 | E7: =C7^2 -> 9 | G7: 2.85 | H7: 3.099660423 | K7: 0 | L7: 4 | M7: 1 | N7: 1 | O7: 0 | P7: 1 | Q7: 1 | R7: 0 | S7: 9 | T7: 4 | U7: 4 | V7: 0 | W7: 0 | X7: 9 | Y7: 4 | Z7: 9 | AA7: 1 | AB7: 1 | AC7: 4 | AD7: 4
A8: 0.1057282059 | B8: 5 | C8: 4 | D8: 0.8 | E8: 16 | G8: 4.55 | H8: 5.093597633 | K8: 1 | L8: 4 | M8: 1 | N8: 1 | O8: 0 | P8: 0 | Q8: 0 | R8: 1 | S8: 16 | T8: 4 | U8: 9 | V8: 1 | W8: 1 | X8: 16 | Y8: 9 | Z8: 9 | AA8: 4 | AB8: 4 | AC8: 1 | AD8: 9
A9: 0.4321868882 | B9: 6 | C9: 4 | D9: 0.6666666667 | E9: 16 | G9: 4.85 | H9: 4.955326746 | K9: 4 | L9: 4 | M9: 0 | N9: 1 | O9: 1 | P9: 1 | Q9: 0 | R9: 4 | S9: 9 | T9: 9 | U9: 4 | V9: 1 | W9: 4 | X9: 9 | Y9: 4 | Z9: 16 | AA9: 9 | AB9: 1 | AC9: 0 | AD9: 16
A10: 0.2254051667 | B10: 7 | C10: 5 | D10: 0.7142857143 | E10: 25 | G10: 6 | H10: 6.790085652 | K10: 9 | L10: 1 | M10: 0 | N10: 1 | O10: 0 | P10: 1 | Q10: 1 | R10: 9 | S10: 9 | T10: 16 | U10: 1 | V10: 1 | W10: 9 | X10: 4 | Y10: 4 | Z10: 25 | AA10: 9 | AB10: 4 | AC10: 0 | AD10: 16
A11: 0.6082387482 | B11: 8 | C11: 5 | D11: 0.625 | E11: 25 | G11: 6.05 | H11: 6.747124144 | K11: 9 | L11: 1 | M11: 1 | N11: 1 | O11: 0 | P11: 1 | Q11: 0 | R11: 9 | S11: 16 | T11: 16 | U11: 4 | V11: 4 | W11: 9 | X11: 9 | Y11: 1 | Z11: 25 | AA11: 4 | AB11: 1 | AC11: 1 | AD11: 9
A12: 0.4979556872 | B12: 9 | C12: 5 | D12: 0.5555555556 | E12: 25 | G12: 7.25 | H12: 7.724704048 | K12: 9 | L12: 1 | M12: 0 | N12: 4 | O12: 1 | P12: 0 | Q12: 1 | R12: 16 | S12: 16 | T12: 25 | U12: 9 | V12: 1 | W12: 9 | X12: 16 | Y12: 0 | Z12: 16 | AA12: 1 | AB12: 0 | AC12: 4 | AD12: 16
A13: 0.2367684904 | B13: 10 | C13: 6 | D13: 0.6 | E13: 36 | G13: 8.15 | H13: 8.73754753 | K13: 16 | L13: 1 | M13: 0 | N13: 9 | O13: 4 | P13: 0 | Q13: 4 | R13: 16 | S13: 25 | T13: 25 | U13: 4 | V13: 0 | W13: 9 | X13: 9 | Y13: 1 | Z13: 25 | AA13: 4 | AB13: 1 | AC13: 1 | AD13: 9
A14: 0.05877055011 | B14: 11 | C14: 7 | D14: 0.6363636364 | E14: 49 | G14: 9.3 | H14: 10.43324645 | K14: 16 | L14: 0 | M14: 0 | N14: 16 | O14: 4 | P14: 1 | Q14: 4 | R14: 25 | S14: 25 | T14: 36 | U14: 1 | V14: 0 | W14: 16 | X14: 9 | Y14: 0 | Z14: 16 | AA14: 9 | AB14: 0 | AC14: 4 | AD14: 4
A15: 0.5587313209 | B15: 12 | C15: 7 | D15: 0.5833333333 | E15: 49 | G15: 8.25 | H15: 11.30381864 | K15: 9 | L15: 1 | M15: 1 | N15: 9 | O15: 1 | P15: 0 | Q15: 4 | R15: 16 | S15: 16 | T15: 49 | U15: 1 | V15: 1 | W15: 9 | X15: 4 | Y15: 1 | Z15: 16 | AA15: 16 | AB15: 1 | AC15: 9 | AD15: 1
A16: 0.06657438347 | B16: 13 | C16: 8 | D16: 0.6153846154 | E16: 64 | G16: 8.55 | H16: 14.85535523 | K16: 4 | L16: 0 | M16: 1 | N16: 4 | O16: 1 | P16: 0 | Q16: 1 | R16: 25 | S16: 16 | T16: 64 | U16: 4 | V16: 0 | W16: 9 | X16: 1 | Y16: 4 | Z16: 16 | AA16: 16 | AB16: 0 | AC16: 4 | AD16: 1
A17: 0.8685675476 | B17: 14 | C17: 7 | D17: 0.5 | E17: 49 | G17: 10.45 | H17: 18.47466259 | K17: 9 | L17: 0 | M17: 1 | N17: 1 | O17: 4 | P17: 0 | Q17: 0 | R17: 25 | S17: 9 | T17: 81 | U17: 9 | V17: 1 | W17: 16 | X17: 0 | Y17: 9 | Z17: 16 | AA17: 25 | AB17: 1 | AC17: 1 | AD17: 1
A18: 0.577202451 | B18: 15 | C18: 7 | D18: 0.4666666667 | E18: 49 | G18: 10.45 | H18: 15.92242708 | K18: 9 | L18: 1 | M18: 0 | N18: 1 | O18: 1 | P18: 0 | Q18: 1 | R18: 16 | S18: 4 | T18: 64 | U18: 16 | V18: 0 | W18: 9 | X18: 1 | Y18: 16 | Z18: 25 | AA18: 36 | AB18: 4 | AC18: 4 | AD18: 1
A19: 0.3097999263 | B19: 16 | C19: 8 | D19: 0.5 | E19: 64 | G19: 10.2 | H19: 13.50087716 | K19: 16 | L19: 0 | M19: 0 | N19: 0 | O19: 0 | P19: 1 | Q19: 0 | R19: 16 | S19: 4 | T19: 49 | U19: 25 | V19: 1 | W19: 9 | X19: 1 | Y19: 16 | Z19: 16 | AA19: 36 | AB19: 9 | AC19: 4 | AD19: 1
A20: 0.1396747778 | B20: 17 | C20: 9 | D20: 0.5294117647 | E20: 81 | G20: 8.65 | H20: 13.05161817 | K20: 9 | L20: 1 | M20: 0 | N20: 1 | O20: 1 | P20: 1 | Q20: 1 | R20: 9 | S20: 1 | T20: 49 | U20: 16 | V20: 1 | W20: 4 | X20: 1 | Y20: 9 | Z20: 16 | AA20: 36 | AB20: 16 | AC20: 1 | AD20: 0
A21: 0.4356398776 | B21: 18 | C21: 9 | D21: 0.5 | E21: 81 | G21: 7.25 | H21: 10.96825563 | K21: 4 | L21: 0 | M21: 1 | N21: 1 | O21: 1 | P21: 1 | Q21: 1 | R21: 9 | S21: 4 | T21: 36 | U21: 16 | V21: 4 | W21: 1 | X21: 1 | Y21: 4 | Z21: 16 | AA21: 36 | AB21: 9 | AC21: 0 | AD21: 0
A22: 0.4297412582 | B22: 19 | C22: 9 | D22: 0.4736842105 | E22: 81 | G22: 7.5 | H22: 12.15037361 | K22: 1 | L22: 1 | M22: 0 | N22: 1 | O22: 4 | P22: 0 | Q22: 4 | R22: 16 | S22: 4 | T22: 25 | U22: 16 | V22: 1 | W22: 0 | X22: 1 | Y22: 1 | Z22: 9 | AA22: 49 | AB22: 16 | AC22: 0 | AD22: 1
A23: 0.7414126978 | B23: 20 | C23: 8 | D23: 0.4 | E23: 64 | G23: 7.3 | H23: 11.30486621 | K23: 1 | L23: 4 | M23: 1 | N23: 0 | O23: 9 | P23: 1 | Q23: 1 | R23: 16 | S23: 4 | T23: 36 | U23: 16 | V23: 0 | W23: 1 | X23: 0 | Y23: 0 | Z23: 4 | AA23: 36 | AB23: 16 | AC23: 0 | AD23: 0
A24: 0.9859374334 | B24: 21 | C24: 7 | D24: 0.3333333333 | E24: 49 | G24: 8.15 | H24: 11.91758983 | K24: 4 | L24: 9 | M24: 0 | N24: 0 | O24: 16 | P24: 1 | Q24: 4 | R24: 16 | S24: 4 | T24: 49 | U24: 16 | V24: 1 | W24: 4 | X24: 1 | Y24: 1 | Z24: 1 | AA24: 25 | AB24: 9 | AC24: 1 | AD24: 1
A25: 0.10520601 | B25: 22 | C25: 8 | D25: 0.3636363636 | E25: 64 | G25: 8.45 | H25: 12.8901227 | K25: 4 | L25: 9 | M25: 0 | N25: 0 | O25: 16 | P25: 1 | Q25: 4 | R25: 9 | S25: 1 | T25: 49 | U25: 16 | V25: 1 | W25: 9 | X25: 0 | Y25: 0 | Z25: 0 | AA25: 36 | AB25: 9 | AC25: 4 | AD25: 1
A26: 0.9594393349 | B26: 23 | C26: 7 | D26: 0.3043478261 | E26: 49 | G26: 9.6 | H26: 13.28394361 | K26: 9 | L26: 9 | M26: 0 | N26: 1 | O26: 25 | P26: 0 | Q26: 4 | R26: 16 | S26: 1 | T26: 36 | U26: 16 | V26: 0 | W26: 9 | X26: 1 | Y26: 1 | Z26: 1 | AA26: 49 | AB26: 9 | AC26: 1 | AD26: 4
A27: 0.7799594206 | B27: 24 | C27: 6 | D27: 0.25 | E27: 36 | G27: 10.5 | H27: 13.2922613 | K27: 9 | L27: 16 | M27: 1 | N27: 0 | O27: 16 | P27: 1 | Q27: 9 | R27: 16 | S27: 1 | T27: 36 | U27: 25 | V27: 1 | W27: 4 | X27: 0 | Y27: 1 | Z27: 1 | AA27: 49 | AB27: 16 | AC27: 4 | AD27: 4
A28: 0.02388054492 | B28: 25 | C28: 7 | D28: 0.28 | E28: 49 | G28: 11.3 | H28: 13.833978 | K28: 9 | L28: 25 | M28: 1 | N28: 1 | O28: 16 | P28: 1 | Q28: 4 | R28: 25 | S28: 0 | T28: 49 | U28: 25 | V28: 1 | W28: 9 | X28: 1 | Y28: 1 | Z28: 0 | AA28: 36 | AB28: 9 | AC28: 4 | AD28: 9
A29: 0.3264739757 | B29: 26 | C29: 8 | D29: 0.3076923077 | E29: 64 | G29: 12.35 | H29: 15.211751 | K29: 4 | L29: 36 | M29: 1 | N29: 4 | O29: 16 | P29: 0 | Q29: 1 | R29: 36 | S29: 1 | T29: 49 | U29: 36 | V29: 4 | W29: 4 | X29: 4 | Y29: 4 | Z29: 0 | AA29: 25 | AB29: 9 | AC29: 4 | AD29: 9
A30: 0.6294072723 | B30: 27 | C30: 8 | D30: 0.2962962963 | E30: 64 | G30: 12.65 | H30: 15.211751 | K30: 1 | L30: 49 | M30: 1 | N30: 9 | O30: 25 | P30: 0 | Q30: 1 | R30: 36 | S30: 0 | T30: 36 | U30: 36 | V30: 9 | W30: 1 | X30: 9 | Y30: 4 | Z30: 1 | AA30: 16 | AB30: 9 | AC30: 1 | AD30: 9
A31: 0.1308653752 | B31: 28 | C31: 9 | D31: 0.3214285714 | E31: 81 | G31: 13.1 | H31: 15.87086042 | K31: 4 | L31: 36 | M31: 0 | N31: 9 | O31: 36 | P31: 1 | Q31: 0 | R31: 49 | S31: 1 | T31: 36 | U31: 36 | V31: 9 | W31: 1 | X31: 16 | Y31: 1 | Z31: 1 | AA31: 9 | AB31: 4 | AC31: 4 | AD31: 9
A32: 0.1135076328 | B32: 29 | C32: 10 | D32: 0.3448275862 | E32: 100 | G32: 14.2 | H32: 17.99298109 | K32: 4 | L32: 49 | M32: 0 | N32: 16 | O32: 49 | P32: 4 | Q32: 1 | R32: 49 | S32: 0 | T32: 36 | U32: 25 | V32: 9 | W32: 0 | X32: 25 | Y32: 4 | Z32: 0 | AA32: 4 | AB32: 4 | AC32: 1 | AD32: 4
A33: 0.3057762965 | B33: 30 | C33: 11 | D33: 0.3666666667 | E33: 121 | G33: 12.95 | H33: 17.84280778 | K33: 9 | L33: 36 | M33: 1 | N33: 16 | O33: 64 | P33: 1 | Q33: 1 | R33: 49 | S33: 1 | T33: 25 | U33: 16 | V33: 9 | W33: 1 | X33: 16 | Y33: 1 | Z33: 0 | AA33: 4 | AB33: 4 | AC33: 1 | AD33: 4
A34: 0.6864009001 | B34: 31 | C34: 10 | D34: 0.3225806452 | E34: 100 | G34: 12.25 | H34: 19.48785047 | K34: 16 | L34: 36 | M34: 4 | N34: 9 | O34: 81 | P34: 1 | Q34: 0 | R34: 36 | S34: 0 | T34: 16 | U34: 9 | V34: 4 | W34: 0 | X34: 16 | Y34: 1 | Z34: 1 | AA34: 9 | AB34: 1 | AC34: 4 | AD34: 1
A35: 0.9019676203 | B35: 32 | C35: 9 | D35: 0.28125 | E35: 81 | G35: 13.75 | H35: 23.54586789 | K35: 25 | L35: 25 | M35: 9 | N35: 4 | O35: 100 | P35: 1 | Q35: 0 | R35: 49 | S35: 1 | T35: 9 | U35: 9 | V35: 4 | W35: 1 | X35: 16 | Y35: 4 | Z35: 4 | AA35: 9 | AB35: 0 | AC35: 4 | AD35: 1
A36: 0.1849776935 | B36: 33 | C36: 10 | D36: 0.303030303 | E36: 100 | G36: 15.1 | H36: 23.71075705 | K36: 25 | L36: 36 | M36: 4 | N36: 9 | O36: 100 | P36: 4 | Q36: 1 | R36: 49 | S36: 4 | T36: 16 | U36: 9 | V36: 1 | W36: 4 | X36: 16 | Y36: 1 | Z36: 4 | AA36: 9 | AB36: 1 | AC36: 9 | AD36: 0
A37: 0.6453278082 | B37: 34 | C37: 10 | D37: 0.2941176471 | E37: 100 | G37: 15.25 | H37: 23.94483792 | K37: 16 | L37: 49 | M37: 1 | N37: 9 | O37: 100 | P37: 1 | Q37: 1 | R37: 36 | S37: 4 | T37: 25 | U37: 4 | V37: 0 | W37: 9 | X37: 16 | Y37: 0 | Z37: 1 | AA37: 16 | AB37: 0 | AC37: 16 | AD37: 1
A38: 0.5002442067 | B38: 35 | C38: 10 | D38: 0.2857142857 | E38: 100 | G38: 14.65 | H38: 21.40898729 | K38: 9 | L38: 64 | M38: 4 | N38: 16 | O38: 81 | P38: 4 | Q38: 1 | R38: 25 | S38: 4 | T38: 25 | U38: 4 | V38: 0 | W38: 9 | X38: 16 | Y38: 1 | Z38: 4 | AA38: 9 | AB38: 1 | AC38: 16 | AD38: 0
A39: 0.2963776055 | B39: 36 | C39: 11 | D39: 0.3055555556 | E39: 121 | G39: 16.8 | H39: 24.09979253 | K39: 9 | L39: 49 | M39: 9 | N39: 16 | O39: 100 | P39: 4 | Q39: 1 | R39: 36 | S39: 4 | T39: 36 | U39: 9 | V39: 0 | W39: 16 | X39: 25 | Y39: 0 | Z39: 1 | AA39: 4 | AB39: 0 | AC39: 16 | AD39: 1
A40: 0.5278155769 | B40: 37 | C40: 11 | D40: 0.2972972973 | E40: 121 | G40: 19.8 | H40: 24.98757586 | K40: 16 | L40: 64 | M40: 16 | N40: 16 | O40: 100 | P40: 1 | Q40: 0 | R40: 36 | S40: 9 | T40: 36 | U40: 16 | V40: 0 | W40: 25 | X40: 25 | Y40: 1 | Z40: 4 | AA40: 4 | AB40: 1 | AC40: 25 | AD40: 1
A41: 0.06119840944 | B41: 38 | C41: 12 | D41: 0.3157894737 | E41: 144 | G41: 17 | H41: 20.30296841 | K41: 9 | L41: 49 | M41: 9 | N41: 25 | O41: 81 | P41: 0 | Q41: 0 | R41: 25 | S41: 9 | T41: 36 | U41: 25 | V41: 0 | W41: 25 | X41: 16 | Y41: 1 | Z41: 9 | AA41: 1 | AB41: 4 | AC41: 16 | AD41: 0
A42: 0.02449467425 | B42: 39 | C42: 13 | D42: 0.3333333333 | E42: 169 | G42: 16.95 | H42: 22.85992817 | K42: 4 | L42: 36 | M42: 9 | N42: 36 | O42: 100 | P42: 1 | Q42: 1 | R42: 16 | S42: 16 | T42: 25 | U42: 16 | V42: 1 | W42: 25 | X42: 16 | Y42: 1 | Z42: 9 | AA42: 0 | AB42: 1 | AC42: 25 | AD42: 1
A43: 3.391834037e-05 | B43: 40 | C43: 14 | D43: 0.35 | E43: 196 | G43: 15.4 | H43: 22.55379534 | K43: 1 | L43: 25 | M43: 4 | N43: 36 | O43: 100 | P43: 0 | Q43: 0 | R43: 16 | S43: 16 | T43: 16 | U43: 9 | V43: 4 | W43: 25 | X43: 16 | Y43: 1 | Z43: 9 | AA43: 1 | AB43: 4 | AC43: 25 | AD43: 0
A44: 0.9607520221 | B44: 41 | C44: 13 | D44: 0.3170731707 | E44: 169 | G44: 15.5 | H44: 22.48391238 | K44: 4 | L44: 16 | M44: 1 | N44: 25 | O44: 100 | P44: 1 | Q44: 0 | R44: 16 | S44: 25 | T44: 9 | U44: 9 | V44: 4 | W44: 16 | X44: 25 | Y44: 4 | Z44: 16 | AA44: 1 | AB44: 1 | AC44: 36 | AD44: 1
A45: 0.8605646683 | B45: 42 | C45: 12 | D45: 0.2857142857 | E45: 144 | G45: 16.55 | H45: 26.91599994 | K45: 1 | L45: 25 | M45: 0 | N45: 25 | O45: 121 | P45: 0 | Q45: 1 | R45: 9 | S45: 25 | T45: 4 | U45: 16 | V45: 9 | W45: 16 | X45: 36 | Y45: 4 | Z45: 9 | AA45: 0 | AB45: 1 | AC45: 25 | AD45: 4
A46: 0.8096757617 | B46: 43 | C46: 11 | D46: 0.2558139535 | E46: 121 | G46: 18.85 | H46: 31.74118195 | K46: 0 | L46: 25 | M46: 1 | N46: 36 | O46: 144 | P46: 1 | Q46: 0 | R46: 9 | S46: 36 | T46: 4 | U46: 16 | V46: 16 | W46: 9 | X46: 25 | Y46: 9 | Z46: 16 | AA46: 0 | AB46: 1 | AC46: 25 | AD46: 4
A47: 0.1068893463 | B47: 44 | C47: 12 | D47: 0.2727272727 | E47: 144 | G47: 20.6 | H47: 32.40922546 | K47: 1 | L47: 36 | M47: 0 | N47: 36 | O47: 144 | P47: 0 | Q47: 1 | R47: 9 | S47: 49 | T47: 9 | U47: 25 | V47: 25 | W47: 9 | X47: 25 | Y47: 9 | Z47: 16 | AA47: 0 | AB47: 1 | AC47: 16 | AD47: 1
A48: 0.9392622087 | B48: 45 | C48: 11 | D48: 0.2444444444 | E48: 121 | G48: 20.85 | H48: 28.21211946 | K48: 4 | L48: 36 | M48: 1 | N48: 49 | O48: 121 | P48: 0 | Q48: 1 | R48: 16 | S48: 36 | T48: 4 | U48: 36 | V48: 36 | W48: 16 | X48: 25 | Y48: 16 | Z48: 9 | AA48: 1 | AB48: 1 | AC48: 9 | AD48: 0
A49: 0.1744024592 | B49: 46 | C49: 12 | D49: 0.2608695652 | E49: 144 | G49: 22.1 | H49: 27.0650289 | K49: 4 | L49: 49 | M49: 0 | N49: 64 | O49: 100 | P49: 0 | Q49: 1 | R49: 16 | S49: 49 | T49: 4 | U49: 36 | V49: 36 | W49: 9 | X49: 36 | Y49: 16 | Z49: 16 | AA49: 1 | AB49: 1 | AC49: 4 | AD49: 0
A50: 0.09492525884 | B50: 47 | C50: 13 | D50: 0.2765957447 | E50: 169 | G50: 23.2 | H50: 32.16994347 | K50: 1 | L50: 49 | M50: 1 | N50: 81 | O50: 121 | P50: 1 | Q50: 4 | R50: 9 | S50: 36 | T50: 1 | U50: 36 | V50: 36 | W50: 4 | X50: 49 | Y50: 16 | Z50: 9 | AA50: 0 | AB50: 0 | AC50: 9 | AD50: 1
A51: 0.7316387429 | B51: 48 | C51: 12 | D51: 0.25 | E51: 144 | G51: 22.1 | H51: 28.81684449 | K51: 1 | L51: 49 | M51: 0 | N51: 64 | O51: 100 | P51: 4 | Q51: 1 | R51: 16 | S51: 49 | T51: 0 | U51: 36 | V51: 25 | W51: 1 | X51: 64 | Y51: 9 | Z51: 4 | AA51: 1 | AB51: 1 | AC51: 16 | AD51: 1
A52: 0.3637034465 | B52: 49 | C52: 12 | D52: 0.2448979592 | E52: 144 | G52: 23.9 | H52: 29.99807011 | K52: 0 | L52: 49 | M52: 1 | N52: 81 | O52: 100 | P52: 9 | Q52: 0 | R52: 25 | S52: 49 | T52: 0 | U52: 36 | V52: 25 | W52: 4 | X52: 64 | Y52: 16 | Z52: 9 | AA52: 0 | AB52: 1 | AC52: 9 | AD52: 0
A53: 0.7220124096 | B53: 50 | C53: 11 | D53: 0.22 | E53: 121 | G53: 26.05 | H53: 34.35185585 | K53: 1 | L53: 64 | M53: 0 | N53: 100 | O53: 100 | P53: 4 | Q53: 0 | R53: 25 | S53: 36 | T53: 0 | U53: 49 | V53: 16 | W53: 4 | X53: 81 | Y53: 25 | Z53: 4 | AA53: 1 | AB53: 1 | AC53: 9 | AD53: 1
A54: 0.6508327362 | B54: 51 | C54: 11 | D54: 0.2156862745 | E54: 121 | G54: 27.7 | H54: 35.34804394 | K54: 1 | L54: 81 | M54: 1 | N54: 100 | O54: 100 | P54: 9 | Q54: 1 | R54: 36 | S54: 49 | T54: 1 | U54: 36 | V54: 9 | W54: 1 | X54: 81 | Y54: 25 | Z54: 9 | AA54: 0 | AB54: 1 | AC54: 9 | AD54: 4
A55: 0.5816786972 | B55: 52 | C55: 11 | D55: 0.2115384615 | E55: 121 | G55: 28.6 | H55: 35.26799653 | K55: 1 | L55: 81 | M55: 1 | N55: 100 | O55: 100 | P55: 4 | Q55: 4 | R55: 36 | S55: 49 | T55: 1 | U55: 36 | V55: 16 | W55: 1 | X55: 81 | Y55: 36 | Z55: 4 | AA55: 0 | AB55: 4 | AC55: 16 | AD55: 1
A56: 0.7049517143 | B56: 53 | C56: 10 | D56: 0.1886792453 | E56: 100 | G56: 31.05 | H56: 40.51442238 | K56: 1 | L56: 100 | M56: 4 | N56: 121 | O56: 100 | P56: 9 | Q56: 4 | R56: 36 | S56: 36 | T56: 0 | U56: 36 | V56: 16 | W56: 0 | X56: 100 | Y56: 36 | Z56: 1 | AA56: 0 | AB56: 4 | AC56: 16 | AD56: 1
A57: 0.1668846897 | B57: 54 | C57: 11 | D57: 0.2037037037 | E57: 121 | G57: 32.35 | H57: 40.83893266 | K57: 0 | L57: 100 | M57: 9 | N57: 121 | O57: 121 | P57: 9 | Q57: 1 | R57: 25 | S57: 36 | T57: 1 | U57: 49 | V57: 16 | W57: 0 | X57: 81 | Y57: 36 | Z57: 4 | AA57: 0 | AB57: 9 | AC57: 25 | AD57: 4
A58: 0.1042961886 | B58: 55 | C58: 12 | D58: 0.2181818182 | E58: 144 | G58: 34.45 | H58: 47.28689036 | K58: 0 | L58: 121 | M58: 9 | N58: 121 | O58: 144 | P58: 9 | Q58: 1 | R58: 36 | S58: 49 | T58: 1 | U58: 36 | V58: 9 | W58: 0 | X58: 100 | Y58: 25 | Z58: 1 | AA58: 1 | AB58: 9 | AC58: 16 | AD58: 1
A59: 0.4301909809 | B59: 56 | C59: 12 | D59: 0.2142857143 | E59: 144 | G59: 35.5 | H59: 49.76841103 | K59: 0 | L59: 144 | M59: 4 | N59: 100 | O59: 144 | P59: 9 | Q59: 4 | R59: 49 | S59: 36 | T59: 1 | U59: 36 | V59: 9 | W59: 1 | X59: 121 | Y59: 25 | Z59: 0 | AA59: 1 | AB59: 9 | AC59: 16 | AD59: 1
A60: 0.3643482904 | B60: 57 | C60: 12 | D60: 0.2105263158 | E60: 144 | G60: 39.35 | H60: 55.37933778 | K60: 0 | L60: 144 | M60: 4 | N60: 100 | O60: 169 | P60: 4 | Q60: 9 | R60: 64 | S60: 49 | T60: 0 | U60: 25 | V60: 4 | W60: 1 | X60: 144 | Y60: 36 | Z60: 0 | AA60: 1 | AB60: 4 | AC60: 25 | AD60: 4
A61: 0.2964072295 | B61: 58 | C61: 13 | D61: 0.224137931 | E61: 169 | G61: 41.3 | H61: 54.79540895 | K61: 1 | L61: 121 | M61: 4 | N61: 121 | O61: 169 | P61: 4 | Q61: 16 | R61: 81 | S61: 36 | T61: 0 | U61: 36 | V61: 1 | W61: 4 | X61: 144 | Y61: 49 | Z61: 0 | AA61: 4 | AB61: 9 | AC61: 25 | AD61: 1
A62: 0.6688547911 | B62: 59 | C62: 12 | D62: 0.2033898305 | E62: 144 | G62: 41.7 | H62: 53.27199323 | K62: 4 | L62: 144 | M62: 1 | N62: 121 | O62: 144 | P62: 4 | Q62: 9 | R62: 64 | S62: 49 | T62: 0 | U62: 36 | V62: 1 | W62: 9 | X62: 144 | Y62: 49 | Z62: 1 | AA62: 9 | AB62: 9 | AC62: 36 | AD62: 0
A63: 0.3263365279 | B63: 60 | C63: 13 | D63: 0.2166666667 | E63: 169 | G63: 43.4 | H63: 56.19552333 | K63: 4 | L63: 144 | M63: 0 | N63: 121 | O63: 144 | P63: 4 | Q63: 16 | R63: 64 | S63: 36 | T63: 0 | U63: 25 | V63: 1 | W63: 9 | X63: 169 | Y63: 64 | Z63: 4 | AA63: 4 | AB63: 9 | AC63: 49 | AD63: 1
A64: 0.9875664163 | B64: 61 | C64: 12 | D64: 0.1967213115 | E64: 144 | G64: 44.55 | H64: 58.92946274 | K64: 9 | L64: 121 | M64: 1 | N64: 144 | O64: 144 | P64: 9 | Q64: 9 | R64: 64 | S64: 49 | T64: 1 | U64: 16 | V64: 1 | W64: 4 | X64: 196 | Y64: 49 | Z64: 9 | AA64: 9 | AB64: 16 | AC64: 36 | AD64: 4
A65: 0.07099503308 | B65: 62 | C65: 13 | D65: 0.2096774194 | E65: 169 | G65: 41.2 | H65: 50.3290227 | K65: 9 | L65: 121 | M65: 1 | N65: 121 | O65: 121 | P65: 16 | Q65: 4 | R65: 49 | S65: 36 | T65: 0 | U65: 25 | V65: 0 | W65: 9 | X65: 169 | Y65: 36 | Z65: 16 | AA65: 16 | AB65: 25 | AC65: 49 | AD65: 1
A66: 0.05639416762 | B66: 63 | C66: 14 | D66: 0.2222222222 | E66: 196 | G66: 42.3 | H66: 56.27011921 | K66: 4 | L66: 144 | M66: 1 | N66: 121 | O66: 121 | P66: 16 | Q66: 4 | R66: 36 | S66: 36 | T66: 1 | U66: 25 | V66: 0 | W66: 9 | X66: 196 | Y66: 36 | Z66: 25 | AA66: 9 | AB66: 25 | AC66: 36 | AD66: 1
A67: 0.7585661156 | B67: 64 | C67: 13 | D67: 0.203125 | E67: 169 | G67: 41.75 | H67: 63.47056923 | K67: 1 | L67: 121 | M67: 1 | N67: 144 | O67: 144 | P67: 16 | Q67: 1 | R67: 25 | S67: 25 | T67: 0 | U67: 25 | V67: 0 | W67: 9 | X67: 225 | Y67: 25 | Z67: 16 | AA67: 4 | AB67: 16 | AC67: 36 | AD67: 1
A68: =RAND() -> 0.6864032613 | B68: 65 | C68: 12 | D68: 0.1846153846 | E68: 144 | G68: =AVERAGE(K68:BB68) -> 40 | H68: =STDEV(K68:BB68) -> 58.685603 | K68: 1 | L68: 100 | M68: 1 | N68: 169 | O68: 121 | P68: 9 | Q68: 0 | R68: 25 | S68: 36 | T68: 1 | U68: 25 | V68: 1 | W68: 16 | X68: 196 | Y68: 36 | Z68: 16 | AA68: 1 | AB68: 9 | AC68: 36 | AD68: 1
A69: 0.5774826359 | B69: 66 | C69: =IF(A69<=0.333,C68+1,IF(A69>=0.666666,C68-1,C68)) -> 12 | D69: 0.1818181818 | E69: 144 | G69: 41.85 | H69: 62.32197804 | K69: 4 | L69: 121 | M69: 1 | N69: 196 | O69: 144 | P69: 4 | Q69: 0 | R69: 25 | S69: 25 | T69: 0 | U69: 36 | V69: 4 | W69: 9 | X69: 169 | Y69: 49 | Z69: 9 | AA69: 1 | AB69: 4 | AC69: 36 | AD69: 0
A70: 0.1483244914 | B70: 67 | C70: 13 | D70: 0.1940298507 | E70: 169 | G70: 46.15 | H70: 69.05929946 | K70: 9 | L70: 121 | M70: 0 | N70: 225 | O70: 144 | P70: 9 | Q70: 1 | R70: 16 | S70: 16 | T70: 1 | U70: 49 | V70: 9 | W70: 9 | X70: 196 | Y70: 64 | Z70: 9 | AA70: 0 | AB70: 9 | AC70: 36 | AD70: 0
A71: 0.9832236614 | B71: =B70+1 -> 68 | C71: 12 | D71: =(C71-$C$3)/B71 -> 0.1764705882 | E71: =C71^2 -> 144 | G71: 46.9 | H71: 66.32527501 | K71: 16 | L71: 100 | M71: 1 | N71: 196 | O71: 121 | P71: 16 | Q71: 1 | R71: 16 | S71: 25 | T71: 0 | U71: 64 | V71: 16 | W71: 4 | X71: 225 | Y71: 81 | Z71: 4 | AA71: 0 | AB71: 16 | AC71: 36 | AD71: 0
A72: 0.1681556999 | B72: 69 | C72: 13 | D72: 0.1884057971 | E72: 169 | G72: 45.8 | H72: 67.08800191 | K72: 16 | L72: 81 | M72: 1 | N72: 225 | O72: 144 | P72: 9 | Q72: 0 | R72: 25 | S72: 25 | T72: 1 | U72: 64 | V72: 25 | W72: 4 | X72: 196 | Y72: 64 | Z72: 1 | AA72: 1 | AB72: 9 | AC72: 25 | AD72: 0
A73: 0.5952130409 | B73: 70 | C73: 13 | D73: 0.1857142857 | E73: 169 | G73: 50.75 | H73: 70.07505375 | K73: 9 | L73: 100 | M73: 4 | N73: 225 | O73: 169 | P73: 4 | Q73: 1 | R73: 25 | S73: 36 | T73: 4 | U73: 81 | V73: 36 | W73: 1 | X73: 196 | Y73: 81 | Z73: 4 | AA73: 4 | AB73: 9 | AC73: 25 | AD73: 1
A74: 0.5149028654 | B74: 71 | C74: 13 | D74: 0.1830985915 | E74: 169 | G74: 50 | H74: 64.60079843 | K74: 16 | L74: 100 | M74: 1 | N74: 225 | O74: 144 | P74: 9 | Q74: 1 | R74: 36 | S74: 49 | T74: 1 | U74: 81 | V74: 36 | W74: 1 | X74: 169 | Y74: 81 | Z74: 1 | AA74: 4 | AB74: 16 | AC74: 25 | AD74: 4
A75: 0.6211242215 | B75: 72 | C75: 13 | D75: 0.1805555556 | E75: 169 | G75: 51.45 | H75: 66.3431867 | K75: 25 | L75: 81 | M75: 0 | N75: 225 | O75: 169 | P75: 16 | Q75: 1 | R75: 25 | S75: 36 | T75: 4 | U75: 81 | V75: 36 | W75: 0 | X75: 169 | Y75: 100 | Z75: 4 | AA75: 4 | AB75: 16 | AC75: 36 | AD75: 1
A76: 0.8733181051 | B76: 73 | C76: 12 | D76: 0.1643835616 | E76: 144 | G76: 53.3 | H76: 67.55590278 | K76: 16 | L76: 100 | M76: 0 | N76: 225 | O76: 144 | P76: 9 | Q76: 1 | R76: 16 | S76: 49 | T76: 9 | U76: 81 | V76: 36 | W76: 1 | X76: 196 | Y76: 100 | Z76: 9 | AA76: 9 | AB76: 16 | AC76: 49 | AD76: 0
A77: 0.9106127982 | B77: 74 | C77: 11 | D77: 0.1486486486 | E77: 121 | G77: 56 | H77: 73.28962015 | K77: 25 | L77: 81 | M77: 0 | N77: 256 | O77: 169 | P77: 16 | Q77: 4 | R77: 9 | S77: 64 | T77: 9 | U77: 81 | V77: 36 | W77: 0 | X77: 196 | Y77: 100 | Z77: 4 | AA77: 4 | AB77: 16 | AC77: 49 | AD77: 1
A78: 0.9451316633 | B78: 75 | C78: 10 | D78: 0.1333333333 | E78: 100 | G78: 55.1 | H78: 71.82793768 | K78: 36 | L78: 100 | M78: 1 | N78: 225 | O78: 196 | P78: 25 | Q78: 1 | R78: 4 | S78: 64 | T78: 4 | U78: 81 | V78: 25 | W78: 1 | X78: 196 | Y78: 81 | Z78: 4 | AA78: 9 | AB78: 9 | AC78: 36 | AD78: 4
A79: 0.4356837875 | B79: 76 | C79: 10 | D79: 0.1315789474 | E79: 100 | G79: 53.75 | H79: 70.08631896 | K79: 36 | L79: 100 | M79: 4 | N79: 225 | O79: 196 | P79: 16 | Q79: 4 | R79: 4 | S79: 81 | T79: 1 | U79: 100 | V79: 16 | W79: 4 | X79: 169 | Y79: 64 | Z79: 1 | AA79: 16 | AB79: 4 | AC79: 25 | AD79: 9
A80: 0.06130044357 | B80: 77 | C80: 11 | D80: 0.1428571429 | E80: 121 | G80: 59.55 | H80: 80.07330523 | K80: 25 | L80: 121 | M80: 9 | N80: 256 | O80: 225 | P80: 9 | Q80: 9 | R80: 9 | S80: 100 | T80: 1 | U80: 81 | V80: 9 | W80: 4 | X80: 196 | Y80: 64 | Z80: 1 | AA80: 16 | AB80: 4 | AC80: 36 | AD80: 16
A81: 0.8190261431 | B81: 78 | C81: 10 | D81: 0.1282051282 | E81: 100 | G81: 61.75 | H81: 86.87854499 | K81: 36 | L81: 121 | M81: 4 | N81: 256 | O81: 256 | P81: 9 | Q81: 4 | R81: 4 | S81: 81 | T81: 4 | U81: 100 | V81: 16 | W81: 4 | X81: 225 | Y81: 64 | Z81: 0 | AA81: 9 | AB81: 1 | AC81: 25 | AD81: 16
A82: 0.9788744115 | B82: 79 | C82: 9 | D82: 0.1139240506 | E82: 81 | G82: 63.3 | H82: 91.06163326 | K82: 36 | L82: 100 | M82: 1 | N82: 289 | O82: 225 | P82: 9 | Q82: 9 | R82: 1 | S82: 64 | T82: 4 | U82: 121 | V82: 16 | W82: 4 | X82: 256 | Y82: 81 | Z82: 0 | AA82: 9 | AB82: 0 | AC82: 25 | AD82: 16
A83: 0.03435383256 | B83: 80 | C83: 10 | D83: 0.125 | E83: 100 | G83: 59.8 | H83: 84.91085108 | K83: 25 | L83: 121 | M83: 0 | N83: 256 | O83: 225 | P83: 16 | Q83: 9 | R83: 0 | S83: 81 | T83: 4 | U83: 121 | V83: 9 | W83: 1 | X83: 225 | Y83: 64 | Z83: 0 | AA83: 4 | AB83: 1 | AC83: 25 | AD83: 9
A84: 0.3699181979 | B84: 81 | C84: 10 | D84: 0.1234567901 | E84: 100 | G84: 61.9 | H84: 87.68298161 | K84: 36 | L84: 100 | M84: 1 | N84: 225 | O84: 256 | P84: 9 | Q84: 9 | R84: 1 | S84: 100 | T84: 4 | U84: 121 | V84: 16 | W84: 4 | X84: 256 | Y84: 64 | Z84: 0 | AA84: 4 | AB84: 0 | AC84: 16 | AD84: 16
A85: 0.4852841707 | B85: 82 | C85: 10 | D85: 0.1219512195 | E85: 100 | G85: 65.1 | H85: 95.54877509 | K85: 36 | L85: 81 | M85: 0 | N85: 225 | O85: 289 | P85: 9 | Q85: 4 | R85: 1 | S85: 81 | T85: 9 | U85: 144 | V85: 16 | W85: 9 | X85: 289 | Y85: 64 | Z85: 1 | AA85: 9 | AB85: 1 | AC85: 9 | AD85: 25
A86: 0.7144757814 | B86: 83 | C86: 9 | D86: 0.1084337349 | E86: 81 | G86: 61.45 | H86: 89.78188482 | K86: 36 | L86: 100 | M86: 1 | N86: 196 | O86: 289 | P86: 9 | Q86: 1 | R86: 4 | S86: 64 | T86: 4 | U86: 144 | V86: 16 | W86: 16 | X86: 256 | Y86: 64 | Z86: 0 | AA86: 4 | AB86: 0 | AC86: 9 | AD86: 16
A87: 0.9873315532 | B87: 84 | C87: 8 | D87: 0.09523809524 | E87: 64 | G87: 65.4 | H87: 93.66030446 | K87: 36 | L87: 121 | M87: 4 | N87: 169 | O87: 289 | P87: 4 | Q87: 0 | R87: 4 | S87: 81 | T87: 4 | U87: 169 | V87: 16 | W87: 16 | X87: 289 | Y87: 64 | Z87: 0 | AA87: 1 | AB87: 0 | AC87: 16 | AD87: 25
A88: 0.1062244833 | B88: 85 | C88: 9 | D88: 0.1058823529 | E88: 81 | G88: 70.85 | H88: 99.41263025 | K88: 36 | L88: 144 | M88: 9 | N88: 169 | O88: 324 | P88: 9 | Q88: 0 | R88: 9 | S88: 64 | T88: 9 | U88: 196 | V88: 25 | W88: 25 | X88: 289 | Y88: 64 | Z88: 0 | AA88: 4 | AB88: 0 | AC88: 25 | AD88: 16
A89: 0.2176709745 | B89: 86 | C89: 10 | D89: 0.1162790698 | E89: 100 | G89: 70.95 | H89: 103.152659 | K89: 49 | L89: 121 | M89: 4 | N89: 169 | O89: 361 | P89: 9 | Q89: 1 | R89: 9 | S89: 81 | T89: 4 | U89: 225 | V89: 16 | W89: 25 | X89: 256 | Y89: 49 | Z89: 1 | AA89: 4 | AB89: 1 | AC89: 25 | AD89: 9
A90: 0.2868600029 | B90: 87 | C90: 11 | D90: 0.1264367816 | E90: 121 | G90: 75.45 | H90: 116.7694422 | K90: 36 | L90: 121 | M90: 1 | N90: 196 | O90: 400 | P90: 4 | Q90: 0 | R90: 4 | S90: 81 | T90: 4 | U90: 256 | V90: 16 | W90: 25 | X90: 289 | Y90: 36 | Z90: 4 | AA90: 1 | AB90: 1 | AC90: 25 | AD90: 9
A91: 0.8691017024 | B91: 88 | C91: 10 | D91: 0.1136363636 | E91: 100 | G91: 76.3 | H91: 112.8343453 | K91: 25 | L91: 144 | M91: 0 | N91: 169 | O91: 361 | P91: 9 | Q91: 1 | R91: 9 | S91: 81 | T91: 9 | U91: 289 | V91: 25 | W91: 16 | X91: 289 | Y91: 49 | Z91: 9 | AA91: 0 | AB91: 0 | AC91: 25 | AD91: 16
A92: 0.8883085629 | B92: 89 | C92: 9 | D92: 0.1011235955 | E92: 81 | G92: 70.85 | H92: 100.4899969 | K92: 36 | L92: 144 | M92: 1 | N92: 144 | O92: 324 | P92: 16 | Q92: 4 | R92: 16 | S92: 100 | T92: 4 | U92: 256 | V92: 16 | W92: 25 | X92: 256 | Y92: 36 | Z92: 4 | AA92: 1 | AB92: 0 | AC92: 25 | AD92: 9
A93: 0.9026922494 | B93: 90 | C93: 8 | D93: 0.08888888889 | E93: 64 | G93: 71.35 | H93: 104.2271179 | K93: 36 | L93: 169 | M93: 0 | N93: 121 | O93: 324 | P93: 25 | Q93: 4 | R93: 9 | S93: 81 | T93: 4 | U93: 289 | V93: 16 | W93: 25 | X93: 256 | Y93: 25 | Z93: 1 | AA93: 1 | AB93: 0 | AC93: 25 | AD93: 16
A94: 0.1655415622 | B94: 91 | C94: 9 | D94: 0.0989010989 | E94: 81 | G94: 72.9 | H94: 107.3375885 | K94: 36 | L94: 169 | M94: 1 | N94: 121 | O94: 324 | P94: 16 | Q94: 1 | R94: 9 | S94: 64 | T94: 1 | U94: 289 | V94: 9 | W94: 36 | X94: 289 | Y94: 36 | Z94: 1 | AA94: 4 | AB94: 0 | AC94: 36 | AD94: 16
A95: 0.3920075919 | B95: 92 | C95: 9 | D95: 0.09782608696 | E95: 81 | G95: 68.8 | H95: 99.27187549 | K95: 36 | L95: 144 | M95: 1 | N95: 121 | O95: 324 | P95: 9 | Q95: 0 | R95: 16 | S95: 64 | T95: 4 | U95: 256 | V95: 9 | W95: 25 | X95: 256 | Y95: 36 | Z95: 0 | AA95: 9 | AB95: 1 | AC95: 49 | AD95: 16
A96: 0.9251556984 | B96: 93 | C96: 8 | D96: 0.08602150538 | E96: 64 | G96: 75.5 | H96: 109.1529588 | K96: 25 | L96: 169 | M96: 1 | N96: 144 | O96: 361 | P96: 16 | Q96: 1 | R96: 16 | S96: 81 | T96: 1 | U96: 289 | V96: 16 | W96: 36 | X96: 256 | Y96: 25 | Z96: 1 | AA96: 16 | AB96: 4 | AC96: 36 | AD96: 16
A97: 0.08420703291 | B97: 94 | C97: 9 | D97: 0.09574468085 | E97: 81 | G97: 77.5 | H97: 118.0332246 | K97: 16 | L97: 169 | M97: 1 | N97: 144 | O97: 400 | P97: 25 | Q97: 1 | R97: 9 | S97: 64 | T97: 4 | U97: 289 | V97: 25 | W97: 25 | X97: 289 | Y97: 25 | Z97: 1 | AA97: 9 | AB97: 9 | AC97: 36 | AD97: 9
A98: 0.525310158 | B98: 95 | C98: 9 | D98: 0.09473684211 | E98: 81 | G98: 75.9 | H98: 113.3503651 | K98: 9 | L98: 144 | M98: 0 | N98: 169 | O98: 361 | P98: 16 | Q98: 1 | R98: 4 | S98: 64 | T98: 4 | U98: 324 | V98: 36 | W98: 36 | X98: 256 | Y98: 16 | Z98: 1 | AA98: 16 | AB98: 16 | AC98: 36 | AD98: 9
A99: 0.0209366858 | B99: 96 | C99: 10 | D99: 0.1041666667 | E99: 100 | G99: 75.9 | H99: 106.7712262 | K99: 16 | L99: 169 | M99: 1 | N99: 196 | O99: 324 | P99: 16 | Q99: 0 | R99: 1 | S99: 64 | T99: 9 | U99: 289 | V99: 49 | W99: 25 | X99: 256 | Y99: 9 | Z99: 4 | AA99: 16 | AB99: 16 | AC99: 49 | AD99: 9
A100: 0.5779507507 | B100: 97 | C100: 10 | D100: 0.1030927835 | E100: 100 | G100: 78.3 | H100: 109.2366335 | K100: 16 | L100: 196 | M100: 4 | N100: 169 | O100: 324 | P100: 25 | Q100: 1 | R100: 4 | S100: 64 | T100: 9 | U100: 289 | V100: 36 | W100: 25 | X100: 289 | Y100: 16 | Z100: 9 | AA100: 16 | AB100: 9 | AC100: 49 | AD100: 16
A101: 0.8101681993 | B101: 98 | C101: 9 | D101: 0.09183673469 | E101: 81 | G101: 83.65 | H101: 116.4452774 | K101: 16 | L101: 196 | M101: 9 | N101: 169 | O101: 324 | P101: 25 | Q101: 1 | R101: 4 | S101: 81 | T101: 4 | U101: 324 | V101: 49 | W101: 25 | X101: 324 | Y101: 25 | Z101: 4 | AA101: 16 | AB101: 4 | AC101: 64 | AD101: 9
A102: 0.4268104883 | B102: 99 | C102: 9 | D102: 0.09090909091 | E102: 81 | G102: 83.5 | H102: 123.8685636 | K102: 9 | L102: 169 | M102: 9 | N102: 144 | O102: 361 | P102: 16 | Q102: 1 | R102: 4 | S102: 64 | T102: 4 | U102: 361 | V102: 64 | W102: 16 | X102: 324 | Y102: 16 | Z102: 1 | AA102: 16 | AB102: 1 | AC102: 81 | AD102: 9
A103: 0.3335982464 | B103: 100 | C103: 9 | D103: 0.09 | E103: 81 | G103: 86.8 | H103: 124.6458562 | K103: 16 | L103: 196 | M103: 4 | N103: 144 | O103: 361 | P103: 16 | Q103: 1 | R103: 4 | S103: 81 | T103: 4 | U103: 361 | V103: 49 | W103: 16 | X103: 324 | Y103: 25 | Z103: 0 | AA103: 25 | AB103: 0 | AC103: 100 | AD103: 9
A104: 0.7173610614 | B104: 101 | C104: 8 | D104: 0.07920792079 | E104: 64 | G104: 89.75 | H104: 131.8048298 | K104: 9 | L104: 225 | M104: 1 | N104: 169 | O104: 400 | P104: 25 | Q104: 0 | R104: 9 | S104: 64 | T104: 1 | U104: 324 | V104: 64 | W104: 16 | X104: 361 | Y104: 16 | Z104: 1 | AA104: 25 | AB104: 0 | AC104: 81 | AD104: 4
A105: 0.241425674 | B105: 102 | C105: 9 | D105: 0.08823529412 | E105: 81 | G105: 89.3 | H105: 130.2031207 | K105: 9 | L105: 225 | M105: 0 | N105: 196 | O105: 400 | P105: 16 | Q105: 0 | R105: 4 | S105: 64 | T105: 0 | U105: 289 | V105: 81 | W105: 16 | X105: 361 | Y105: 16 | Z105: 1 | AA105: 25 | AB105: 1 | AC105: 81 | AD105: 1
A106: 0.8313807783 | B106: 103 | C106: 8 | D106: 0.07766990291 | E106: 64 | G106: 89.15 | H106: 127.2776803 | K106: 16 | L106: 256 | M106: 1 | N106: 196 | O106: 361 | P106: 9 | Q106: 1 | R106: 9 | S106: 64 | T106: 0 | U106: 289 | V106: 81 | W106: 16 | X106: 361 | Y106: 9 | Z106: 0 | AA106: 25 | AB106: 4 | AC106: 81 | AD106: 4
A107: 0.954955945 | B107: 104 | C107: 7 | D107: 0.06730769231 | E107: 49 | G107: 87.85 | H107: 123.6004918 | K107: 25 | L107: 289 | M107: 1 | N107: 225 | O107: 324 | P107: 16 | Q107: 4 | R107: 4 | S107: 49 | T107: 1 | U107: 289 | V107: 81 | W107: 16 | X107: 324 | Y107: 4 | Z107: 0 | AA107: 16 | AB107: 4 | AC107: 81 | AD107: 4
A108: 0.7356944366 | B108: 105 | C108: 6 | D108: 0.05714285714 | E108: 36 | G108: 89.7 | H108: 126.7679604 | K108: 25 | L108: 289 | M108: 1 | N108: 225 | O108: 289 | P108: 25 | Q108: 9 | R108: 1 | S108: 49 | T108: 1 | U108: 324 | V108: 64 | W108: 25 | X108: 361 | Y108: 9 | Z108: 0 | AA108: 25 | AB108: 4 | AC108: 64 | AD108: 4
A109: 0.6904212543 | B109: 106 | C109: 5 | D109: 0.04716981132 | E109: 25 | G109: 89.65 | H109: 127.7008325 | K109: 16 | L109: 256 | M109: 0 | N109: 196 | O109: 324 | P109: 16 | Q109: 4 | R109: 0 | S109: 49 | T109: 0 | U109: 289 | V109: 81 | W109: 36 | X109: 400 | Y109: 9 | Z109: 1 | AA109: 25 | AB109: 1 | AC109: 81 | AD109: 9
A110: 0.1867982866 | B110: 107 | C110: 6 | D110: 0.05607476636 | E110: 36 | G110: 90.2 | H110: 127.6960206 | K110: 25 | L110: 289 | M110: 0 | N110: 169 | O110: 324 | P110: 25 | Q110: 9 | R110: 1 | S110: 36 | T110: 1 | U110: 324 | V110: 100 | W110: 25 | X110: 361 | Y110: 9 | Z110: 4 | AA110: 16 | AB110: 1 | AC110: 81 | AD110: 4
A111: 0.3514283033 | B111: 108 | C111: 6 | D111: 0.05555555556 | E111: 36 | G111: 97.85 | H111: 138.44637 | K111: 36 | L111: 324 | M111: 1 | N111: 196 | O111: 361 | P111: 16 | Q111: 16 | R111: 4 | S111: 49 | T111: 0 | U111: 361 | V111: 81 | W111: 16 | X111: 361 | Y111: 4 | Z111: 9 | AA111: 9 | AB111: 4 | AC111: 100 | AD111: 9
A112: 0.1813034804 | B112: 109 | C112: 7 | D112: 0.06422018349 | E112: 49 | G112: 102.8 | H112: 143.9589123 | K112: 25 | L112: 361 | M112: 1 | N112: 225 | O112: 361 | P112: 9 | Q112: 16 | R112: 4 | S112: 49 | T112: 1 | U112: 324 | V112: 100 | W112: 16 | X112: 400 | Y112: 1 | Z112: 9 | AA112: 16 | AB112: 1 | AC112: 121 | AD112: 16
A113: 0.6146859178 | B113: 110 | C113: 7 | D113: 0.06363636364 | E113: 49 | G113: 101.15 | H113: 147.2878581 | K113: 16 | L113: 400 | M113: 0 | N113: 225 | O113: 324 | P113: 4 | Q113: 25 | R113: 4 | S113: 36 | T113: 1 | U113: 289 | V113: 100 | W113: 16 | X113: 441 | Y113: 4 | Z113: 4 | AA113: 9 | AB113: 0 | AC113: 100 | AD113: 25
A114: 0.3971188669 | B114: 111 | C114: 7 | D114: 0.06306306306 | E114: 49 | G114: 102.45 | H114: 148.7960367 | K114: 16 | L114: 441 | M114: 1 | N114: 196 | O114: 324 | P114: 4 | Q114: 25 | R114: 9 | S114: 25 | T114: 0 | U114: 324 | V114: 121 | W114: 9 | X114: 400 | Y114: 9 | Z114: 4 | AA114: 4 | AB114: 1 | AC114: 100 | AD114: 36
A115: 0.6980417637 | B115: 112 | C115: 6 | D115: 0.05357142857 | E115: 36 | G115: 105.75 | H115: 155.0412084 | K115: 25 | L115: 484 | M115: 0 | N115: 225 | O115: 289 | P115: 1 | Q115: 16 | R115: 9 | S115: 25 | T115: 1 | U115: 289 | V115: 144 | W115: 4 | X115: 441 | Y115: 16 | Z115: 1 | AA115: 9 | AB115: 0 | AC115: 100 | AD115: 36
A116: 0.566037615 | B116: 113 | C116: 6 | D116: 0.05309734513 | E116: 36 | G116: 108.35 | H116: 163.8671718 | K116: 16 | L116: 529 | M116: 1 | N116: 225 | O116: 324 | P116: 4 | Q116: 9 | R116: 4 | S116: 25 | T116: 1 | U116: 289 | V116: 121 | W116: 1 | X116: 441 | Y116: 25 | Z116: 1 | AA116: 4 | AB116: 1 | AC116: 121 | AD116: 25
A117: 0.8499114372 | B117: 114 | C117: 5 | D117: 0.04385964912 | E117: 25 | G117: 108.05 | H117: 159.5943789 | K117: 25 | L117: 484 | M117: 1 | N117: 225 | O117: 324 | P117: 4 | Q117: 16 | R117: 4 | S117: 25 | T117: 4 | U117: 324 | V117: 100 | W117: 0 | X117: 441 | Y117: 25 | Z117: 1 | AA117: 1 | AB117: 0 | AC117: 121 | AD117: 36
A118: 0.795039895 | B118: 115 | C118: 4 | D118: 0.0347826087 | E118: 16 | G118: 105.45 | H118: 156.2486126 | K118: 25 | L118: 441 | M118: 0 | N118: 196 | O118: 289 | P118: 1 | Q118: 25 | R118: 9 | S118: 25 | T118: 9 | U118: 324 | V118: 81 | W118: 1 | X118: 484 | Y118: 25 | Z118: 0 | AA118: 4 | AB118: 1 | AC118: 144 | AD118: 25
A119: 0.06924440536 | B119: 116 | C119: 5 | D119: 0.04310344828 | E119: 25 | G119: 112.25 | H119: 168.6041377 | K119: 36 | L119: 484 | M119: 1 | N119: 169 | O119: 324 | P119: 4 | Q119: 16 | R119: 4 | S119: 36 | T119: 16 | U119: 324 | V119: 81 | W119: 0 | X119: 529 | Y119: 25 | Z119: 0 | AA119: 1 | AB119: 1 | AC119: 169 | AD119: 25
A120: 0.5758340862 | B120: 117 | C120: 5 | D120: 0.04273504274 | E120: 25 | G120: 113.85 | H120: 167.5590312 | K120: 49 | L120: 484 | M120: 0 | N120: 196 | O120: 289 | P120: 1 | Q120: 16 | R120: 1 | S120: 49 | T120: 9 | U120: 324 | V120: 81 | W120: 0 | X120: 529 | Y120: 16 | Z120: 0 | AA120: 1 | AB120: 0 | AC120: 196 | AD120: 36
A121: 0.2752983455 | B121: 118 | C121: 6 | D121: 0.05084745763 | E121: 36 | G121: 112 | H121: 162.9174799 | K121: 49 | L121: 484 | M121: 0 | N121: 225 | O121: 256 | P121: 1 | Q121: 25 | R121: 4 | S121: 49 | T121: 16 | U121: 289 | V121: 64 | W121: 1 | X121: 529 | Y121: 25 | Z121: 1 | AA121: 4 | AB121: 0 | AC121: 169 | AD121: 49
A122: 0.1260973172 | B122: 119 | C122: 7 | D122: 0.05882352941 | E122: 49 | G122: 112.05 | H122: 166.2073768 | K122: 49 | L122: 529 | M122: 0 | N122: 256 | O122: 225 | P122: 1 | Q122: 16 | R122: 1 | S122: 36 | T122: 9 | U122: 324 | V122: 81 | W122: 0 | X122: 484 | Y122: 16 | Z122: 4 | AA122: 4 | AB122: 1 | AC122: 169 | AD122: 36
A123: 0.6372283133 | B123: 120 | C123: 7 | D123: 0.05833333333 | E123: 49 | G123: 115.8 | H123: 175.3371489 | K123: 64 | L123: 576 | M123: 0 | N123: 289 | O123: 196 | P123: 0 | Q123: 16 | R123: 1 | S123: 36 | T123: 16 | U123: 361 | V123: 81 | W123: 1 | X123: 484 | Y123: 9 | Z123: 9 | AA123: 4 | AB123: 4 | AC123: 144 | AD123: 25
A124: 0.5330854605 | B124: 121 | C124: 7 | D124: 0.05785123967 | E124: 49 | G124: 121.2 | H124: 180.1956831 | K124: 49 | L124: 576 | M124: 1 | N124: 324 | O124: 196 | P124: 1 | Q124: 16 | R124: 0 | S124: 49 | T124: 16 | U124: 400 | V124: 81 | W124: 1 | X124: 484 | Y124: 16 | Z124: 16 | AA124: 4 | AB124: 9 | AC124: 169 | AD124: 16
A125: 0.07441150777 | B125: 122 | C125: 8 | D125: 0.06557377049 | E125: 64 | G125: 120.8 | H125: 179.5314369 | K125: 49 | L125: 625 | M125: 0 | N125: 289 | O125: 169 | P125: 1 | Q125: 25 | R125: 0 | S125: 64 | T125: 16 | U125: 400 | V125: 100 | W125: 0 | X125: 441 | Y125: 9 | Z125: 25 | AA125: 9 | AB125: 16 | AC125: 169 | AD125: 9
A126: 0.5139284577 | B126: 123 | C126: 8 | D126: 0.06504065041 | E126: 64 | G126: 125.8 | H126: 185.5982078 | K126: 64 | L126: 676 | M126: 0 | N126: 289 | O126: 169 | P126: 0 | Q126: 36 | R126: 0 | S126: 64 | T126: 16 | U126: 400 | V126: 121 | W126: 1 | X126: 441 | Y126: 16 | Z126: 36 | AA126: 9 | AB126: 25 | AC126: 144 | AD126: 9
A127: 0.3363101972 | B127: 124 | C127: 8 | D127: 0.06451612903 | E127: 64 | G127: 127 | H127: 189.6667437 | K127: 49 | L127: 729 | M127: 0 | N127: 256 | O127: 169 | P127: 0 | Q127: 49 | R127: 0 | S127: 64 | T127: 9 | U127: 361 | V127: 121 | W127: 1 | X127: 441 | Y127: 25 | Z127: 36 | AA127: 16 | AB127: 36 | AC127: 169 | AD127: 9
A128: 0.6551189811 | B128: 125 | C128: 8 | D128: 0.064 | E128: 64 | G128: 124.3 | H128: 185.0917553 | K128: 36 | L128: 676 | M128: 1 | N128: 225 | O128: 196 | P128: 0 | Q128: 49 | R128: 0 | S128: 49 | T128: 9 | U128: 361 | V128: 100 | W128: 1 | X128: 484 | Y128: 16 | Z128: 36 | AA128: 25 | AB128: 49 | AC128: 169 | AD128: 4
A129: 0.5618989948 | B129: 126 | C129: 8 | D129: 0.06349206349 | E129: 64 | G129: 131.95 | H129: 196.1056308 | K129: 36 | L129: 729 | M129: 4 | N129: 256 | O129: 169 | P129: 1 | Q129: 64 | R129: 1 | S129: 64 | T129: 4 | U129: 324 | V129: 121 | W129: 1 | X129: 529 | Y129: 25 | Z129: 25 | AA129: 25 | AB129: 64 | AC129: 196 | AD129: 1
A130: 0.3468903385 | B130: 127 | C130: 8 | D130: 0.06299212598 | E130: 64 | G130: 127.85 | H130: 185.3305085 | K130: 36 | L130: 676 | M130: 9 | N130: 289 | O130: 144 | P130: 1 | Q130: 49 | R130: 1 | S130: 64 | T130: 1 | U130: 324 | V130: 121 | W130: 0 | X130: 484 | Y130: 36 | Z130: 16 | AA130: 16 | AB130: 64 | AC130: 225 | AD130: 1
A131: 0.4414001894 | B131: 128 | C131: 8 | D131: 0.0625 | E131: 64 | G131: 132.2 | H131: 190.7231667 | K131: 49 | L131: 676 | M131: 9 | N131: 256 | O131: 169 | P131: 0 | Q131: 49 | R131: 4 | S131: 64 | T131: 4 | U131: 361 | V131: 121 | W131: 1 | X131: 529 | Y131: 49 | Z131: 9 | AA131: 16 | AB131: 49 | AC131: 225 | AD131: 4
A132: =RAND() -> 0.2700279125 | B132: 129 | C132: 9 | D132: 0.06976744186 | E132: 81 | G132: =AVERAGE(K132:BB132) -> 126.3 | H132: =STDEV(K132:BB132) -> 178.8124863 | K132: 36 | L132: 625 | M132: 9 | N132: 289 | O132: 144 | P132: 1 | Q132: 64 | R132: 9 | S132: 49 | T132: 4 | U132: 361 | V132: 121 | W132: 4 | X132: 484 | Y132: 36 | Z132: 4 | AA132: 25 | AB132: 64 | AC132: 196 | AD132: 1
A133: 0.07272583695 | B133: 130 | C133: =IF(A133<=0.333,C132+1,IF(A133>=0.666666,C132-1,C132)) -> 10 | D133: 0.07692307692 | E133: 100 | G133: 128.5 | H133: 185.0344207 | K133: 49 | L133: 676 | M133: 4 | N133: 324 | O133: 144 | P133: 0 | Q133: 49 | R133: 16 | S133: 49 | T133: 4 | U133: 361 | V133: 100 | W133: 9 | X133: 441 | Y133: 49 | Z133: 1 | AA133: 16 | AB133: 49 | AC133: 225 | AD133: 4
A134: 0.9299981426 | B134: 131 | C134: 9 | D134: 0.06870229008 | E134: 81 | G134: 131.95 | H134: 196.4354655 | K134: 36 | L134: 729 | M134: 1 | N134: 289 | O134: 169 | P134: 0 | Q134: 64 | R134: 16 | S134: 64 | T134: 1 | U134: 361 | V134: 100 | W134: 4 | X134: 484 | Y134: 36 | Z134: 4 | AA134: 16 | AB134: 36 | AC134: 225 | AD134: 4
A135: 0.3084819226 | B135: =B134+1 -> 132 | C135: 10 | D135: =(C135-$C$3)/B135 -> 0.07575757576 | E135: =C135^2 -> 100 | G135: 138.55 | H135: 205.7869299 | K135: 25 | L135: 729 | M135: 1 | N135: 324 | O135: 144 | P135: 1 | Q135: 64 | R135: 25 | S135: 64 | T135: 1 | U135: 400 | V135: 121 | W135: 4 | X135: 529 | Y135: 25 | Z135: 4 | AA135: 25 | AB135: 25 | AC135: 256 | AD135: 4
A136: 0.4254210112 | B136: 133 | C136: 10 | D136: 0.07518796992 | E136: 100 | G136: 144.3 | H136: 215.2668112 | K136: 16 | L136: 784 | M136: 4 | N136: 361 | O136: 169 | P136: 4 | Q136: 49 | R136: 25 | S136: 49 | T136: 0 | U136: 441 | V136: 144 | W136: 9 | X136: 484 | Y136: 25 | Z136: 1 | AA136: 36 | AB136: 25 | AC136: 256 | AD136: 4
A137: 0.1225530986 | B137: 134 | C137: 11 | D137: 0.08208955224 | E137: 121 | G137: 145.5 | H137: 215.22045 | K137: 9 | L137: 784 | M137: 1 | N137: 400 | O137: 196 | P137: 9 | Q137: 49 | R137: 16 | S137: 36 | T137: 1 | U137: 441 | V137: 169 | W137: 4 | X137: 441 | Y137: 36 | Z137: 0 | AA137: 25 | AB137: 36 | AC137: 256 | AD137: 1
A138: 0.9271733002 | B138: 135 | C138: 10 | D138: 0.07407407407 | E138: 100 | G138: 140.1 | H138: 205.1086747 | K138: 4 | L138: 729 | M138: 4 | N138: 361 | O138: 169 | P138: 4 | Q138: 36 | R138: 16 | S138: 36 | T138: 4 | U138: 441 | V138: 144 | W138: 1 | X138: 441 | Y138: 49 | Z138: 0 | AA138: 25 | AB138: 49 | AC138: 289 | AD138: 0
A139: 0.1221064754 | B139: 136 | C139: 11 | D139: 0.08088235294 | E139: 121 | G139: 145.05 | H139: 210.2418344 | K139: 4 | L139: 784 | M139: 1 | N139: 361 | O139: 196 | P139: 9 | Q139: 49 | R139: 16 | S139: 49 | T139: 9 | U139: 400 | V139: 169 | W139: 0 | X139: 441 | Y139: 49 | Z139: 1 | AA139: 25 | AB139: 49 | AC139: 289 | AD139: 0
A140: 0.657349097 | B140: 137 | C140: 11 | D140: 0.0802919708 | E140: 121 | G140: 146.6 | H140: 218.3383179 | K140: 1 | L140: 841 | M140: 0 | N140: 400 | O140: 225 | P140: 9 | Q140: 36 | R140: 16 | S140: 49 | T140: 16 | U140: 400 | V140: 144 | W140: 0 | X140: 400 | Y140: 64 | Z140: 0 | AA140: 25 | AB140: 49 | AC140: 256 | AD140: 1
A141: 0.2332463901 | B141: 138 | C141: 12 | D141: 0.08695652174 | E141: 144 | G141: 149.5 | H141: 229.7436787 | K141: 4 | L141: 900 | M141: 1 | N141: 361 | O141: 256 | P141: 4 | Q141: 25 | R141: 9 | S141: 36 | T141: 9 | U141: 441 | V141: 169 | W141: 0 | X141: 361 | Y141: 49 | Z141: 0 | AA141: 36 | AB141: 36 | AC141: 289 | AD141: 4
A142: 0.2084520132 | B142: 139 | C142: 13 | D142: 0.09352517986 | E142: 169 | G142: 148.45 | H142: 222.5702668 | K142: 4 | L142: 841 | M142: 1 | N142: 400 | O142: 256 | P142: 1 | Q142: 25 | R142: 4 | S142: 36 | T142: 4 | U142: 441 | V142: 196 | W142: 1 | X142: 324 | Y142: 49 | Z142: 0 | AA142: 36 | AB142: 25 | AC142: 324 | AD142: 1
A143: 0.6207713888 | B143: 140 | C143: 13 | D143: 0.09285714286 | E143: 169 | G143: 150.7 | H143: 225.3409347 | K143: 1 | L143: 841 | M143: 4 | N143: 400 | O143: 289 | P143: 1 | Q143: 16 | R143: 1 | S143: 49 | T143: 1 | U143: 484 | V143: 196 | W143: 4 | X143: 289 | Y143: 36 | Z143: 0 | AA143: 49 | AB143: 25 | AC143: 324 | AD143: 4
A144: 0.09567531932 | B144: 141 | C144: 14 | D144: 0.09929078014 | E144: 196 | G144: 147.45 | H144: 230.3218515 | K144: 0 | L144: 900 | M144: 1 | N144: 361 | O144: 256 | P144: 0 | Q144: 9 | R144: 1 | S144: 36 | T144: 0 | U144: 441 | V144: 196 | W144: 1 | X144: 256 | Y144: 49 | Z144: 0 | AA144: 64 | AB144: 16 | AC144: 361 | AD144: 1
A145: 0.3139310616 | B145: 142 | C145: 15 | D145: 0.1056338028 | E145: 225 | G145: 146.55 | H145: 227.8384642 | K145: 1 | L145: 900 | M145: 1 | N145: 324 | O145: 225 | P145: 0 | Q145: 16 | R145: 1 | S145: 49 | T145: 0 | U145: 441 | V145: 225 | W145: 4 | X145: 256 | Y145: 64 | Z145: 1 | AA145: 49 | AB145: 9 | AC145: 361 | AD145: 4
A146: 0.328142217 | B146: 143 | C146: 16 | D146: 0.1118881119 | E146: 256 | G146: 156.2 | H146: 240.8121347 | K146: 0 | L146: 961 | M146: 0 | N146: 361 | O146: 225 | P146: 1 | Q146: 25 | R146: 0 | S146: 64 | T146: 0 | U146: 441 | V146: 256 | W146: 9 | X146: 289 | Y146: 64 | Z146: 0 | AA146: 49 | AB146: 9 | AC146: 361 | AD146: 9
A147: 0.1692124279 | B147: 144 | C147: 17 | D147: 0.1180555556 | E147: 289 | G147: 150 | H147: 228.01385 | K147: 0 | L147: 900 | M147: 1 | N147: 324 | O147: 196 | P147: 4 | Q147: 36 | R147: 0 | S147: 49 | T147: 1 | U147: 441 | V147: 289 | W147: 4 | X147: 256 | Y147: 49 | Z147: 0 | AA147: 64 | AB147: 16 | AC147: 361 | AD147: 9
A148: 0.4801432696 | B148: 145 | C148: 17 | D148: 0.1172413793 | E148: 289 | G148: 152.25 | H148: 239.6541093 | K148: 1 | L148: 961 | M148: 1 | N148: 289 | O148: 225 | P148: 1 | Q148: 25 | R148: 1 | S148: 49 | T148: 0 | U148: 441 | V148: 289 | W148: 4 | X148: 225 | Y148: 49 | Z148: 1 | AA148: 49 | AB148: 25 | AC148: 400 | AD148: 9
A149: 0.7695358022 | B149: 146 | C149: 16 | D149: 0.1095890411 | E149: 256 | G149: 159.35 | H149: 242.438766 | K149: 4 | L149: 961 | M149: 1 | N149: 324 | O149: 256 | P149: 1 | Q149: 25 | R149: 4 | S149: 49 | T149: 1 | U149: 441 | V149: 256 | W149: 9 | X149: 256 | Y149: 49 | Z149: 4 | AA149: 64 | AB149: 25 | AC149: 441 | AD149: 16
A150: 0.1342206941 | B150: 147 | C150: 17 | D150: 0.1156462585 | E150: 289 | G150: 167.55 | H150: 248.2565471 | K150: 4 | L150: 961 | M150: 1 | N150: 361 | O150: 256 | P150: 4 | Q150: 36 | R150: 4 | S150: 49 | T150: 4 | U150: 484 | V150: 256 | W150: 9 | X150: 256 | Y150: 64 | Z150: 9 | AA150: 64 | AB150: 36 | AC150: 484 | AD150: 9
A151: 0.8103115753 | B151: 148 | C151: 16 | D151: 0.1081081081 | E151: 256 | G151: 167 | H151: 254.6386501 | K151: 9 | L151: 1024 | M151: 0 | N151: 361 | O151: 225 | P151: 9 | Q151: 25 | R151: 4 | S151: 49 | T151: 1 | U151: 441 | V151: 256 | W151: 16 | X151: 225 | Y151: 49 | Z151: 16 | AA151: 81 | AB151: 49 | AC151: 484 | AD151: 16
A152: 0.6133140162 | B152: 149 | C152: 16 | D152: 0.1073825503 | E152: 256 | G152: 175.1 | H152: 269.762254 | K152: 4 | L152: 1089 | M152: 1 | N152: 400 | O152: 196 | P152: 9 | Q152: 16 | R152: 9 | S152: 36 | T152: 4 | U152: 484 | V152: 289 | W152: 25 | X152: 196 | Y152: 64 | Z152: 16 | AA152: 100 | AB152: 64 | AC152: 484 | AD152: 16
A153: 0.3518498594 | B153: 150 | C153: 16 | D153: 0.1066666667 | E153: 256 | G153: 173.4 | H153: 267.3098734 | K153: 9 | L153: 1089 | M153: 0 | N153: 361 | O153: 196 | P153: 4 | Q153: 9 | R153: 9 | S153: 49 | T153: 9 | U153: 529 | V153: 256 | W153: 36 | X153: 196 | Y153: 64 | Z153: 16 | AA153: 121 | AB153: 49 | AC153: 441 | AD153: 25
A154: 0.2657967385 | B154: 151 | C154: 17 | D154: 0.1125827815 | E154: 289 | G154: 169.7 | H154: 253.1789673 | K154: 9 | L154: 1024 | M154: 0 | N154: 324 | O154: 169 | P154: 1 | Q154: 9 | R154: 9 | S154: 64 | T154: 16 | U154: 529 | V154: 225 | W154: 25 | X154: 225 | Y154: 81 | Z154: 25 | AA154: 144 | AB154: 49 | AC154: 441 | AD154: 25
A155: 0.569211124 | B155: 152 | C155: 17 | D155: 0.1118421053 | E155: 289 | G155: 164.25 | H155: 241.5807318 | K155: 16 | L155: 961 | M155: 1 | N155: 324 | O155: 144 | P155: 0 | Q155: 16 | R155: 4 | S155: 64 | T155: 9 | U155: 484 | V155: 196 | W155: 25 | X155: 225 | Y155: 64 | Z155: 25 | AA155: 169 | AB155: 49 | AC155: 484 | AD155: 25
A156: 0.5148355552 | B156: 153 | C156: 17 | D156: 0.1111111111 | E156: 289 | G156: 161.45 | H156: 232.5129255 | K156: 16 | L156: 900 | M156: 1 | N156: 361 | O156: 144 | P156: 0 | Q156: 16 | R156: 9 | S156: 49 | T156: 16 | U156: 484 | V156: 169 | W156: 25 | X156: 225 | Y156: 64 | Z156: 25 | AA156: 169 | AB156: 36 | AC156: 484 | AD156: 36
A157: 0.3859636336 | B157: 154 | C157: 17 | D157: 0.1103896104 | E157: 289 | G157: 157.75 | H157: 217.8543393 | K157: 25 | L157: 841 | M157: 1 | N157: 324 | O157: 144 | P157: 1 | Q157: 25 | R157: 9 | S157: 49 | T157: 16 | U157: 441 | V157: 196 | W157: 25 | X157: 256 | Y157: 64 | Z157: 25 | AA157: 144 | AB157: 49 | AC157: 484 | AD157: 36
A158: 0.06762268191 | B158: 155 | C158: 18 | D158: 0.1161290323 | E158: 324 | G158: 153.2 | H158: 204.6510766 | K158: 25 | L158: 784 | M158: 4 | N158: 289 | O158: 169 | P158: 1 | Q158: 36 | R158: 4 | S158: 49 | T158: 25 | U158: 400 | V158: 196 | W158: 25 | X158: 256 | Y158: 49 | Z158: 25 | AA158: 169 | AB158: 49 | AC158: 484 | AD158: 25
A159: 0.974450466 | B159: 156 | C159: 17 | D159: 0.108974359 | E159: 289 | G159: 153.6 | H159: 203.6055009 | K159: 36 | L159: 784 | M159: 4 | N159: 324 | O159: 144 | P159: 0 | Q159: 36 | R159: 1 | S159: 64 | T159: 16 | U159: 400 | V159: 169 | W159: 16 | X159: 289 | Y159: 64 | Z159: 36 | AA159: 196 | AB159: 36 | AC159: 441 | AD159: 16
A160: 0.6109426839 | B160: 157 | C160: 17 | D160: 0.1082802548 | E160: 289 | G160: 158.05 | H160: 212.1892093 | K160: 36 | L160: 841 | M160: 9 | N160: 361 | O160: 121 | P160: 1 | Q160: 49 | R160: 1 | S160: 64 | T160: 9 | U160: 361 | V160: 169 | W160: 25 | X160: 289 | Y160: 49 | Z160: 49 | AA160: 225 | AB160: 36 | AC160: 441 | AD160: 25
A161: 0.2967476474 | B161: 158 | C161: 18 | D161: 0.1139240506 | E161: 324 | G161: 159.05 | H161: 221.7659921 | K161: 25 | L161: 900 | M161: 4 | N161: 361 | O161: 121 | P161: 1 | Q161: 64 | R161: 4 | S161: 81 | T161: 4 | U161: 324 | V161: 144 | W161: 25 | X161: 256 | Y161: 64 | Z161: 49 | AA161: 196 | AB161: 49 | AC161: 484 | AD161: 25
A162: 0.2406505761 | B162: 159 | C162: 19 | D162: 0.1194968553 | E162: 361 | G162: 163.55 | H162: 224.425694 | K162: 36 | L162: 900 | M162: 9 | N162: 324 | O162: 100 | P162: 4 | Q162: 49 | R162: 4 | S162: 81 | T162: 9 | U162: 361 | V162: 169 | W162: 16 | X162: 256 | Y162: 64 | Z162: 64 | AA162: 196 | AB162: 64 | AC162: 529 | AD162: 36
A163: 0.5129274576 | B163: 160 | C163: 19 | D163: 0.11875 | E163: 361 | G163: 161 | H163: 210.0415999 | K163: 25 | L163: 841 | M163: 9 | N163: 361 | O163: 121 | P163: 4 | Q163: 49 | R163: 9 | S163: 100 | T163: 4 | U163: 324 | V163: 144 | W163: 25 | X163: 289 | Y163: 64 | Z163: 81 | AA163: 169 | AB163: 81 | AC163: 484 | AD163: 36
A164: 0.3189127282 | B164: 161 | C164: 20 | D164: 0.1242236025 | E164: 400 | G164: 166 | H164: 205.999489 | K164: 25 | L164: 784 | M164: 9 | N164: 400 | O164: 144 | P164: 4 | Q164: 36 | R164: 16 | S164: 121 | T164: 4 | U164: 289 | V164: 144 | W164: 16 | X164: 324 | Y164: 81 | Z164: 100 | AA164: 169 | AB164: 100 | AC164: 529 | AD164: 25
A165: 0.5016986125 | B165: 162 | C165: 20 | D165: 0.1234567901 | E165: 400 | G165: 166.55 | H165: 207.7443963 | K165: 16 | L165: 784 | M165: 16 | N165: 441 | O165: 144 | P165: 9 | Q165: 25 | R165: 25 | S165: 100 | T165: 4 | U165: 324 | V165: 121 | W165: 16 | X165: 361 | Y165: 100 | Z165: 81 | AA165: 144 | AB165: 100 | AC165: 484 | AD165: 36
A166: 0.1363817278 | B166: 163 | C166: 21 | D166: 0.1288343558 | E166: 441 | G166: 162.15 | H166: 204.4410287 | K166: 9 | L166: 784 | M166: 9 | N166: 441 | O166: 144 | P166: 4 | Q166: 16 | R166: 36 | S166: 81 | T166: 1 | U166: 289 | V166: 121 | W166: 16 | X166: 361 | Y166: 100 | Z166: 64 | AA166: 169 | AB166: 121 | AC166: 441 | AD166: 36
A167: 0.3274135104 | B167: 164 | C167: 22 | D167: 0.1341463415 | E167: 484 | G167: 152.15 | H167: 191.2053938 | K167: 4 | L167: 729 | M167: 16 | N167: 400 | O167: 121 | P167: 4 | Q167: 16 | R167: 49 | S167: 64 | T167: 4 | U167: 256 | V167: 144 | W167: 9 | X167: 324 | Y167: 81 | Z167: 49 | AA167: 196 | AB167: 100 | AC167: 441 | AD167: 36
A168: 0.3717611781 | B168: 165 | C168: 22 | D168: 0.1333333333 | E168: 484 | G168: 153.55 | H168: 198.9227501 | K168: 9 | L168: 729 | M168: 25 | N168: 400 | O168: 100 | P168: 1 | Q168: 16 | R168: 36 | S168: 64 | T168: 1 | U168: 289 | V168: 121 | W168: 9 | X168: 361 | Y168: 64 | Z168: 36 | AA168: 196 | AB168: 81 | AC168: 484 | AD168: 49
A169: 0.3263313101 | B169: 166 | C169: 23 | D169: 0.1385542169 | E169: 529 | G169: 151.25 | H169: 203.3511029 | K169: 9 | L169: 784 | M169: 16 | N169: 361 | O169: 121 | P169: 1 | Q169: 9 | R169: 49 | S169: 49 | T169: 1 | U169: 324 | V169: 121 | W169: 16 | X169: 324 | Y169: 49 | Z169: 25 | AA169: 225 | AB169: 64 | AC169: 441 | AD169: 36
A170: 0.3654971895 | B170: 167 | C170: 23 | D170: 0.1377245509 | E170: 529 | G170: 153.25 | H170: 206.5732634 | K170: 9 | L170: 784 | M170: 16 | N170: 361 | O170: 121 | P170: 0 | Q170: 16 | R170: 49 | S170: 49 | T170: 4 | U170: 289 | V170: 144 | W170: 9 | X170: 324 | Y170: 49 | Z170: 16 | AA170: 256 | AB170: 49 | AC170: 484 | AD170: 36
A171: 0.159840987 | B171: 168 | C171: 24 | D171: 0.1428571429 | E171: 576 | G171: 151 | H171: 212.2748963 | K171: 9 | L171: 784 | M171: 9 | N171: 400 | O171: 100 | P171: 1 | Q171: 9 | R171: 49 | S171: 36 | T171: 1 | U171: 289 | V171: 144 | W171: 9 | X171: 289 | Y171: 36 | Z171: 16 | AA171: 225 | AB171: 49 | AC171: 529 | AD171: 36
A172: 0.1308769676 | B172: 169 | C172: 25 | D172: 0.1479289941 | E172: 625 | G172: 146.55 | H172: 210.8814771 | K172: 4 | L172: 784 | M172: 4 | N172: 400 | O172: 121 | P172: 0 | Q172: 16 | R172: 36 | S172: 25 | T172: 1 | U172: 256 | V172: 169 | W172: 4 | X172: 256 | Y172: 36 | Z172: 9 | AA172: 196 | AB172: 36 | AC172: 529 | AD172: 49
A173: 0.2498325549 | B173: 170 | C173: 26 | D173: 0.1529411765 | E173: 676 | G173: 145.05 | H173: 217.3901356 | K173: 4 | L173: 784 | M173: 9 | N173: 441 | O173: 121 | P173: 0 | Q173: 25 | R173: 25 | S173: 25 | T173: 0 | U173: 225 | V173: 169 | W173: 1 | X173: 225 | Y173: 25 | Z173: 16 | AA173: 169 | AB173: 25 | AC173: 576 | AD173: 36
A174: 0.5697049019 | B174: 171 | C174: 26 | D174: 0.1520467836 | E174: 676 | G174: 142.25 | H174: 210.9482039 | K174: 1 | L174: 784 | M174: 4 | N174: 400 | O174: 121 | P174: 1 | Q174: 16 | R174: 36 | S174: 16 | T174: 1 | U174: 256 | V174: 196 | W174: 0 | X174: 225 | Y174: 25 | Z174: 25 | AA174: 144 | AB174: 16 | AC174: 529 | AD174: 49
A175: 0.3944219443 | B175: 172 | C175: 26 | D175: 0.1511627907 | E175: 676 | G175: 151.1 | H175: 219.1132608 | K175: 0 | L175: 784 | M175: 9 | N175: 441 | O175: 144 | P175: 0 | Q175: 9 | R175: 36 | S175: 9 | T175: 1 | U175: 289 | V175: 196 | W175: 1 | X175: 225 | Y175: 36 | Z175: 36 | AA175: 169 | AB175: 25 | AC175: 576 | AD175: 36
A176: 0.3834230933 | B176: 173 | C176: 26 | D176: 0.1502890173 | E176: 676 | G176: 149 | H176: 211.6471741 | K176: 0 | L176: 729 | M176: 9 | N176: 400 | O176: 121 | P176: 1 | Q176: 9 | R176: 49 | S176: 16 | T176: 1 | U176: 256 | V176: 169 | W176: 0 | X176: 256 | Y176: 36 | Z176: 49 | AA176: 169 | AB176: 36 | AC176: 625 | AD176: 49
A177: 0.2244876544 | B177: 174 | C177: 27 | D177: 0.1551724138 | E177: 729 | G177: 151.8 | H177: 210.4920551 | K177: 1 | L177: 676 | M177: 4 | N177: 400 | O177: 121 | P177: 0 | Q177: 9 | R177: 49 | S177: 16 | T177: 0 | U177: 256 | V177: 144 | W177: 0 | X177: 289 | Y177: 49 | Z177: 64 | AA177: 169 | AB177: 49 | AC177: 676 | AD177: 64
A178: 0.01795865836 | B178: 175 | C178: 28 | D178: 0.16 | E178: 784 | G178: 152.75 | H178: 204.5194303 | K178: 1 | L178: 625 | M178: 1 | N178: 441 | O178: 121 | P178: 1 | Q178: 4 | R178: 49 | S178: 16 | T178: 0 | U178: 225 | V178: 169 | W178: 1 | X178: 256 | Y178: 64 | Z178: 81 | AA178: 196 | AB178: 64 | AC178: 676 | AD178: 64
A179: 0.09531432048 | B179: 176 | C179: 29 | D179: 0.1647727273 | E179: 841 | G179: 146 | H179: 188.3076989 | K179: 4 | L179: 576 | M179: 0 | N179: 400 | O179: 144 | P179: 1 | Q179: 9 | R179: 49 | S179: 16 | T179: 1 | U179: 256 | V179: 144 | W179: 1 | X179: 225 | Y179: 81 | Z179: 64 | AA179: 196 | AB179: 64 | AC179: 625 | AD179: 64
A180: 0.441177289 | B180: 177 | C180: 29 | D180: 0.1638418079 | E180: 841 | G180: 147.6 | H180: 184.0996298 | K180: 1 | L180: 529 | M180: 1 | N180: 400 | O180: 169 | P180: 4 | Q180: 16 | R180: 49 | S180: 16 | T180: 1 | U180: 256 | V180: 121 | W180: 4 | X180: 256 | Y180: 100 | Z180: 49 | AA180: 225 | AB180: 49 | AC180: 625 | AD180: 81
A181: 0.01064184134 | B181: 178 | C181: 30 | D181: 0.1685393258 | E181: 900 | G181: 153 | H181: 187.6648749 | K181: 1 | L181: 576 | M181: 4 | N181: 441 | O181: 144 | P181: 1 | Q181: 25 | R181: 49 | S181: 16 | T181: 1 | U181: 256 | V181: 121 | W181: 4 | X181: 289 | Y181: 121 | Z181: 49 | AA181: 256 | AB181: 49 | AC181: 576 | AD181: 81
A182: 0.9485778355 | B182: 179 | C182: 29 | D182: 0.1620111732 | E182: 841 | G182: 165.15 | H182: 206.5364184 | K182: 0 | L182: 625 | M182: 4 | N182: 484 | O182: 169 | P182: 1 | Q182: 25 | R182: 64 | S182: 16 | T182: 0 | U182: 289 | V182: 121 | W182: 1 | X182: 324 | Y182: 100 | Z182: 36 | AA182: 289 | AB182: 49 | AC182: 625 | AD182: 81
A183: 0.2369297582 | B183: 180 | C183: 30 | D183: 0.1666666667 | E183: 900 | G183: 159.2 | H183: 193.1842862 | K183: 0 | L183: 576 | M183: 1 | N183: 484 | O183: 144 | P183: 0 | Q183: 36 | R183: 81 | S183: 25 | T183: 1 | U183: 324 | V183: 100 | W183: 4 | X183: 289 | Y183: 121 | Z183: 36 | AA183: 256 | AB183: 49 | AC183: 576 | AD183: 81
A184: 0.7037080062 | B184: 181 | C184: 29 | D184: 0.1602209945 | E184: 841 | G184: 161.6 | H184: 188.7990856 | K184: 1 | L184: 576 | M184: 0 | N184: 441 | O184: 169 | P184: 1 | Q184: 25 | R184: 81 | S184: 36 | T184: 4 | U184: 361 | V184: 81 | W184: 4 | X184: 324 | Y184: 144 | Z184: 49 | AA184: 289 | AB184: 36 | AC184: 529 | AD184: 81
A185: 0.5513216694 | B185: 182 | C185: 29 | D185: 0.1593406593 | E185: 841 | G185: 162.25 | H185: 182.1612574 | K185: 4 | L185: 529 | M185: 0 | N185: 441 | O185: 169 | P185: 1 | Q185: 36 | R185: 100 | S185: 49 | T185: 9 | U185: 361 | V185: 64 | W185: 9 | X185: 324 | Y185: 169 | Z185: 49 | AA185: 289 | AB185: 49 | AC185: 529 | AD185: 64
A186: 0.5850115896 | B186: 183 | C186: 29 | D186: 0.1584699454 | E186: 841 | G186: 162.55 | H186: 188.6139123 | K186: 1 | L186: 484 | M186: 1 | N186: 441 | O186: 169 | P186: 1 | Q186: 49 | R186: 100 | S186: 36 | T186: 4 | U186: 361 | V186: 49 | W186: 4 | X186: 361 | Y186: 169 | Z186: 36 | AA186: 324 | AB186: 36 | AC186: 576 | AD186: 49
A187: 0.3450910449 | B187: 184 | C187: 29 | D187: 0.1576086957 | E187: 841 | G187: 168.8 | H187: 195.6257437 | K187: 1 | L187: 529 | M187: 1 | N187: 441 | O187: 196 | P187: 1 | Q187: 49 | R187: 81 | S187: 36 | T187: 1 | U187: 361 | V187: 36 | W187: 9 | X187: 400 | Y187: 196 | Z187: 49 | AA187: 324 | AB187: 25 | AC187: 576 | AD187: 64
A188: 0.9055058663 | B188: 185 | C188: 28 | D188: 0.1513513514 | E188: 784 | G188: 160 | H188: 184.3115212 | K188: 0 | L188: 484 | M188: 0 | N188: 400 | O188: 196 | P188: 0 | Q188: 64 | R188: 100 | S188: 36 | T188: 4 | U188: 324 | V188: 25 | W188: 4 | X188: 361 | Y188: 169 | Z188: 36 | AA188: 324 | AB188: 16 | AC188: 576 | AD188: 81
A189: 0.4376546338 | B189: 186 | C189: 28 | D189: 0.1505376344 | E189: 784 | G189: 161.9 | H189: 189.9675596 | K189: 1 | L189: 484 | M189: 0 | N189: 400 | O189: 225 | P189: 1 | Q189: 81 | R189: 81 | S189: 36 | T189: 4 | U189: 289 | V189: 36 | W189: 1 | X189: 400 | Y189: 144 | Z189: 25 | AA189: 289 | AB189: 16 | AC189: 625 | AD189: 100
A190: 0.5543924416 | B190: 187 | C190: 28 | D190: 0.1497326203 | E190: 784 | G190: 156.8 | H190: 183.2707517 | K190: 1 | L190: 484 | M190: 0 | N190: 361 | O190: 225 | P190: 4 | Q190: 81 | R190: 64 | S190: 49 | T190: 1 | U190: 289 | V190: 49 | W190: 0 | X190: 361 | Y190: 144 | Z190: 36 | AA190: 256 | AB190: 25 | AC190: 625 | AD190: 81
A191: 0.07523936511 | B191: 188 | C191: 29 | D191: 0.1542553191 | E191: 841 | G191: 159.2 | H191: 184.7603284 | K191: 0 | L191: 529 | M191: 1 | N191: 324 | O191: 225 | P191: 9 | Q191: 100 | R191: 49 | S191: 49 | T191: 0 | U191: 289 | V191: 49 | W191: 1 | X191: 324 | Y191: 169 | Z191: 36 | AA191: 289 | AB191: 16 | AC191: 625 | AD191: 100
A192: 0.7786750063 | B192: 189 | C192: 28 | D192: 0.1481481481 | E192: 784 | G192: 163.8 | H192: 199.6638227 | K192: 0 | L192: 576 | M192: 1 | N192: 361 | O192: 225 | P192: 16 | Q192: 81 | R192: 36 | S192: 49 | T192: 0 | U192: 256 | V192: 36 | W192: 4 | X192: 324 | Y192: 169 | Z192: 36 | AA192: 324 | AB192: 25 | AC192: 676 | AD192: 81
A193: 0.1074265274 | B193: 190 | C193: 29 | D193: 0.1526315789 | E193: 841 | G193: 164.15 | H193: 205.0358826 | K193: 1 | L193: 625 | M193: 1 | N193: 324 | O193: 196 | P193: 9 | Q193: 100 | R193: 25 | S193: 49 | T193: 1 | U193: 289 | V193: 25 | W193: 4 | X193: 324 | Y193: 169 | Z193: 25 | AA193: 324 | AB193: 16 | AC193: 676 | AD193: 100
A194: 0.8877135602 | B194: 191 | C194: 28 | D194: 0.1465968586 | E194: 784 | G194: 159.5 | H194: 195.9920783 | K194: 4 | L194: 576 | M194: 1 | N194: 324 | O194: 169 | P194: 4 | Q194: 100 | R194: 25 | S194: 49 | T194: 0 | U194: 324 | V194: 25 | W194: 9 | X194: 361 | Y194: 144 | Z194: 36 | AA194: 324 | AB194: 9 | AC194: 625 | AD194: 81
A195: 0.4841682062 | B195: 192 | C195: 28 | D195: 0.1458333333 | E195: 784 | G195: 160.75 | H195: 194.3886165 | K195: 4 | L195: 576 | M195: 1 | N195: 289 | O195: 144 | P195: 1 | Q195: 121 | R195: 25 | S195: 49 | T195: 1 | U195: 361 | V195: 36 | W195: 4 | X195: 400 | Y195: 144 | Z195: 49 | AA195: 361 | AB195: 9 | AC195: 576 | AD195: 64
A196: =RAND() -> 0.7236397642 | B196: 193 | C196: 27 | D196: 0.1398963731 | E196: 729 | G196: =AVERAGE(K196:BB196) -> 156.7 | H196: =STDEV(K196:BB196) -> 191.2689206 | K196: 9 | L196: 576 | M196: 1 | N196: 256 | O196: 121 | P196: 1 | Q196: 121 | R196: 25 | S196: 49 | T196: 0 | U196: 361 | V196: 25 | W196: 9 | X196: 400 | Y196: 144 | Z196: 49 | AA196: 400 | AB196: 9 | AC196: 529 | AD196: 49
A197: 0.1356184245 | B197: 194 | C197: =IF(A197<=0.333,C196+1,IF(A197>=0.666666,C196-1,C196)) -> 28 | D197: 0.1443298969 | E197: 784 | G197: 156.75 | H197: 194.3528736 | K197: 4 | L197: 529 | M197: 0 | N197: 225 | O197: 121 | P197: 0 | Q197: 100 | R197: 16 | S197: 36 | T197: 1 | U197: 361 | V197: 25 | W197: 9 | X197: 400 | Y197: 169 | Z197: 49 | AA197: 441 | AB197: 9 | AC197: 576 | AD197: 64
A198: 0.1460944774 | B198: 195 | C198: 29 | D198: 0.1487179487 | E198: 841 | G198: 154.95 | H198: 186.3551999 | K198: 9 | L198: 529 | M198: 1 | N198: 225 | O198: 144 | P198: 1 | Q198: 100 | R198: 9 | S198: 36 | T198: 4 | U198: 324 | V198: 36 | W198: 16 | X198: 441 | Y198: 169 | Z198: 36 | AA198: 400 | AB198: 9 | AC198: 529 | AD198: 81
A199: 0.3101579115 | B199: =B198+1 -> 196 | C199: 30 | D199: =(C199-$C$3)/B199 -> 0.1530612245 | E199: =C199^2 -> 900 | G199: 158.7 | H199: 186.2754327 | K199: 16 | L199: 576 | M199: 4 | N199: 256 | O199: 121 | P199: 0 | Q199: 81 | R199: 4 | S199: 49 | T199: 9 | U199: 361 | V199: 25 | W199: 25 | X199: 441 | Y199: 196 | Z199: 49 | AA199: 361 | AB199: 16 | AC199: 484 | AD199: 100
A200: 0.7109936361 | B200: 197 | C200: 29 | D200: 0.1472081218 | E200: 841 | G200: 154.5 | H200: 189.6363556 | K200: 16 | L200: 576 | M200: 9 | N200: 225 | O200: 100 | P200: 1 | Q200: 81 | R200: 9 | S200: 36 | T200: 9 | U200: 361 | V200: 16 | W200: 16 | X200: 441 | Y200: 196 | Z200: 36 | AA200: 324 | AB200: 9 | AC200: 529 | AD200: 100
... 2050 more rows
